{"text_format":"1","workbook":"xlsx","n_sheets":10,"sheets":["Datos del del proyecto","LISTA DESPLEGABLE","Línea Base y beneficios proy","Resultados del proyecto","Costos del proyecto","Resultados del proyecto ","Línea Base y beneficios pro (2)","Resultados del proyecto  (2)","Línea Base y beneficios pro (3)","Resultados del proyecto  (3)"],"not_rendered":{"charts":11,"images":24,"macros":1,"external_links":1,"defined_names":213,"comments":0,"pivot_tables":0},"unopened":[],"bounds":{"document_bytes":16777216,"sheet_cells":100000,"rows_first":2000,"rows_last":500,"rows_between":2000,"halvings":0,"cell_chars":16384,"cell_head_chars":4096},"cells_cut":0,"cells_raw":0,"read":"whole","date_system":"1900"}

{"sheet":"Datos del del proyecto","index":0,"n_rows":37,"n_cols":19,"rows_kept":37,"cut":false,"hidden":false,"merged":[[37,14,37,15],[38,14,38,15],[35,12,35,13],[32,14,32,15],[33,14,33,15],[34,14,34,15],[35,14,35,15],[31,12,31,13],[32,12,32,13],[33,12,33,13],[34,12,34,13],[36,14,36,15],[31,10,31,11],[32,10,32,11],[33,10,33,11],[34,10,34,11],[35,10,35,11],[36,3,38,6],[36,7,36,9],[37,7,37,9],[38,7,38,9],[11,3,11,5],[11,7,11,17],[29,7,29,9],[21,3,21,5],[31,14,31,15],[36,12,36,13],[37,12,37,13],[38,12,38,13],[36,10,36,11],[37,10,37,11],[38,10,38,11],[16,3,16,5],[1,5,1,14],[2,2,2,17],[3,2,3,17],[1,2,1,4],[1,15,1,17],[7,7,7,17],[6,7,6,17],[6,3,6,5],[7,3,7,5],[24,20,24,21],[17,3,17,5],[19,3,19,5],[18,7,18,17],[19,7,19,17],[8,3,8,5],[8,7,8,17],[9,3,9,5],[9,7,9,17],[18,3,18,5],[22,3,24,5],[16,7,16,17],[19,0,19,2],[20,3,20,5],[20,7,20,17],[29,0,30,0],[29,16,29,17],[29,14,29,15],[21,7,21,17],[22,7,22,17],[23,7,23,17],[24,7,24,17],[25,7,25,17],[26,7,26,17],[27,7,27,17],[30,14,30,15],[25,3,27,5],[30,3,32,5],[33,3,35,6],[30,7,30,9],[31,7,31,9],[32,7,32,9],[33,7,33,9],[34,7,34,9],[35,7,35,9],[30,10,30,11],[17,10,17,13],[17,15,17,16],[17,7,17,8],[28,3,28,17],[29,3,29,6],[29,10,29,11],[29,12,29,13],[30,12,30,13],[30,16,30,17],[36,16,36,17],[37,16,37,17],[38,16,38,17],[31,16,31,17],[32,16,32,17],[33,16,33,17],[34,16,34,17],[35,16,35,17]]}
[null,null,null,null,null,null,null,null,null,null,null,null,null,null,null,null,null,"VERSIÓN 3.0"]
["MENÚ",null,null,null,null,"FORMATO PARA LA PRESENTACIÓN DE PROYECTOS AMBIENTALES AÑO 2026"]
[]
[null,null,"1. DATOS GENERALES DEL PROYECTO"]
[]
[]
[null,null,null,"Nombre de la empresa"]
[null,null,null,"Dirección de la sede "]
[null,null,null,"Personal involucrado en el proyecto"]
[null,null,null,"Responsable del proyecto"]
[]
[]
[]
[]
[]
[]
[null,null,null,"Nombre del proyecto"]
[null,null,null,"Fecha de inicio",null,null,null,null,null,null,"Fecha de terminación",null,null,null,null,null,null,null,{"$f":"DATEDIF(EOMONTH(H18,0),EOMONTH(P18,1),\"M\")","v":0}]
[null,null,null,"Descripción de la problemática"]
[null,null,null,"Descripción del proyecto"]
[null,null,null,"Alcance"]
[null,null,null,"Objetivo general"]
[null,null,null,"Objetivos específicos"]
[]
[]
[null,null,null,"Metas"]
[]
[]
[null,null,null,"CRONOGRAMA"]
[null,null,null,"Objetivo específico",null,null,null,"Actividades / Entregas principales",null,null,"Fecha inicio DD/MM/AAAA",null,"Fecha final\nDD/MM/AAAA",null,"Actividad clave ",null,"Nombre de la evidencia que soportará la actividad"]
[null,null,null,{"$f":"+H23","v":0}]
[]
[]
[null,null,null,{"$f":"+H24","v":0}]
[]
[]
[null,null,null,{"$f":"+H25","v":0}]

{"sheet":"LISTA DESPLEGABLE","index":1,"n_rows":23,"n_cols":1,"rows_kept":23,"cut":false,"hidden":true,"merged":[[26,1,26,2]]}
["COMPONENTE"]
["Uso eficiente de agua"]
["Uso eficiente de energía eléctrica"]
["Uso eficiente de energía térmica"]
["Disminución de residuos peligrosos"]
["Uso eficiente de materiales "]
["Reducción de emisiones "]
["Reducción de residuos ordinarios"]
["Uso eficiente de residuos orgánicos"]
["Uso eficiente de residuos aprovechables"]
["Uso eficiente de residuos de construcción y demolición"]
[]
[]
["UND DE MEDIDA"]
[]
["m³"]
["kWh"]
["kg"]
["Ton"]
["Ton CO₂eq/año"]
["Unidades"]
["L"]
["Galones"]

{"sheet":"Línea Base y beneficios proy","index":2,"n_rows":83,"n_cols":20,"rows_kept":83,"cut":false,"hidden":false,"merged":[[82,2,82,18],[3,3,3,17],[39,2,39,18],[38,4,38,16],[12,21,12,22],[9,11,9,13],[33,2,33,18],[9,3,9,7],[9,8,9,9],[1,2,1,4],[1,5,1,14],[8,3,8,7],[4,2,4,19],[8,8,8,9],[8,11,8,14],[1,15,1,19],[2,2,2,18]]}
[null,null,null,null,null,null,null,null,null,null,null,null,null,null,null,null,null,null,null,"VERSIÓN 3.0"]
["MENÚ",null,null,null,null,"FORMATO PARA LA PRESENTACIÓN DE \nPROYECTOS AMBIENTALES AÑO 2026"]
[]
[null,null,null,"Nota: La hoja se encuentra protegida en algunas celdas. Por favor, registre manualmente los datos de su organización en los campos de color verde claro."]
[null,null,"2. LINEA BASE Y BENEFICIOS DEL PROYECTO PRINCIPAL"]
[]
[]
[]
[null,null,null,"Componente ambiental",null,null,null,null,"Unidad",null,null,"Mes de inicio de la línea base"]
[]
[]
[]
[]
[null,null,null,"Línea Base","Mes 1","Mes 2","Mes 3","Mes 4","Mes 5","Mes 6","Mes 7","Mes 8","Mes 9","Mes 10","Mes 11","Mes 12","Total","Promedio mes","Mín.","Máx."]
[null,null,null,"Consumo o generación",null,null,null,null,null,null,null,null,null,null,null,null,{"$f":"SUM(TablaLineaBase[[#This Row],[Mes 1]:[Mes 12]])","v":0},{"$f":"AVERAGE(TablaLineaBase[[#This Row],[Mes 1]:[Mes 12]])","v":{"$error":"#DIV/0!"}},{"$f":"MIN(TablaLineaBase[[#This Row],[Mes 1]:[Mes 12]])","v":0},{"$f":"MAX(TablaLineaBase[[#This Row],[Mes 1]:[Mes 12]])","v":0}]
[null,null,null,"Consumo o generación proyectado",{"$f":"IFERROR(IF($D$10=\"Uso eficiente de residuos orgánicos\",IF(E15+$F$28<=$F$28,\"\",E15+$F$28),IF($D$10=\"Uso eficiente de residuos aprovechables\",IF(E15+$F$28<=$F$28,\"\",E15+$F$28),IF(E15-$F$28<0,\"\",E15-$F$28))),\"\")","v":""},{"$f":"IFERROR(IF($D$10=\"Uso eficiente de residuos orgánicos\",IF(F15+$F$28<=$F$28,\"\",F15+$F$28),IF($D$10=\"Uso eficiente de residuos aprovechables\",IF(F15+$F$28<=$F$28,\"\",F15+$F$28),IF(F15-$F$28<0,\"\",F15-$F$28))),\"\")","v":""},"","","","","","","","","","",{"$f":"SUM(TablaLineaBase[[#This Row],[Mes 1]:[Mes 12]])","v":0},{"$f":"AVERAGE(TablaLineaBase[[#This Row],[Mes 1]:[Mes 12]])","v":{"$error":"#DIV/0!"}},{"$f":"MIN(TablaLineaBase[[#This Row],[Mes 1]:[Mes 12]])","v":0},{"$f":"MAX(TablaLineaBase[[#This Row],[Mes 1]:[Mes 12]])","v":0}]
[null,null,null,"Costo ",null,null,null,null,null,null,null,null,null,null,null,null,{"$f":"SUM(TablaLineaBase[[#This Row],[Mes 1]:[Mes 12]])","v":0},{"$f":"AVERAGE(TablaLineaBase[[#This Row],[Mes 1]:[Mes 12]])","v":{"$error":"#DIV/0!"}},{"$f":"MIN(TablaLineaBase[[#This Row],[Mes 1]:[Mes 12]])","v":0},{"$f":"MAX(TablaLineaBase[[#This Row],[Mes 1]:[Mes 12]])","v":0}]
[null,null,null,"Promedio consumo o generación",{"$f":"$R$15","v":{"$error":"#DIV/0!"}},{"$f":"$R$15","v":{"$error":"#DIV/0!"}},{"$error":"#DIV/0!"},{"$error":"#DIV/0!"},{"$error":"#DIV/0!"},{"$error":"#DIV/0!"},{"$error":"#DIV/0!"},{"$error":"#DIV/0!"},{"$error":"#DIV/0!"},{"$error":"#DIV/0!"},{"$error":"#DIV/0!"},{"$error":"#DIV/0!"}]
[null,null,null,"Promedio proyección beneficio ambiental",{"$f":"+$R$16","v":{"$error":"#DIV/0!"}},{"$f":"+$R$16","v":{"$error":"#DIV/0!"}},{"$error":"#DIV/0!"},{"$error":"#DIV/0!"},{"$error":"#DIV/0!"},{"$error":"#DIV/0!"},{"$error":"#DIV/0!"},{"$error":"#DIV/0!"},{"$error":"#DIV/0!"},{"$error":"#DIV/0!"},{"$error":"#DIV/0!"},{"$error":"#DIV/0!"}]
[]
[null,null,null,"Máximo",{"$f":"$T$15","v":0},{"$f":"$T$15","v":0},0,0,0,0,0,0,0,0,0,0]
[null,null,null,"Mínimo",{"$f":"$S$15","v":0},{"$f":"$S$15","v":0},0,0,0,0,0,0,0,0,0,0]
[]
[]
[]
[]
[null,null,null,"Beneficio proyectado","% Beneficio proyectado","Mensual proyectado","No de meses proyectados","Beneficio total"]
[null,null,null,"Ambiental (Consumo o generación)",null,{"$f":"IFERROR(TablaBeneProyectado[[#This Row],[% Beneficio proyectado]]*$R$15,\"\")","v":""},null,{"$f":"IFERROR(TablaBeneProyectado[[#This Row],[Mensual proyectado]]*TablaBeneProyectado[[#This Row],[No de meses proyectados]],\"\")","v":""}]
[null,null,null,"Económico",null,{"$f":"IFERROR(TablaBeneProyectado[[#This Row],[% Beneficio proyectado]]*$R$17,\"0\")","v":"0"},null,{"$f":"IFERROR(TablaBeneProyectado[[#This Row],[Mensual proyectado]]*TablaBeneProyectado[[#This Row],[No de meses proyectados]],\"\")","v":0}]
[]
[]
[]
[]
[null,null,"CÁLCULOS COMPLEMENTARIOS PARA ESTIMAR LA LÍNEA BASE Y LOS BENEFICIOS PROYECTADOS"]
[]
[]
[]
[]
[]
[null,null,"Evidencias estimación línea base"]
[]
[]
[]
[]
[]
[]
[]
[]
[]
[]
[]
[]
[]
[]
[]
[]
[]
[]
[]
[]
[]
[]
[]
[]
[]
[]
[]
[]
[]
[]
[]
[]
[]
[]
[]
[]
[]
[]
[]
[]
[]
[]
[null,null,"Cálculos / justificación beneficios ambientales y económicos proyectados"]

{"sheet":"Resultados del proyecto","index":3,"n_rows":72,"n_cols":16,"rows_kept":72,"cut":false,"hidden":true,"merged":[[26,11,26,12],[26,13,26,14],[27,11,27,12],[27,13,27,14],[71,1,71,18],[47,2,47,6],[47,7,47,8],[53,11,53,12],[53,13,53,14],[54,11,54,12],[54,13,54,14],[12,2,12,6],[12,7,12,8],[14,21,14,22],[1,1,1,3],[1,4,1,13],[1,14,1,18],[2,1,2,17],[3,1,3,18],[6,21,6,23]]}
[]
[null,null,null,null,"FORMATO PARA LA PRESENTACIÓN DE \nPROYECTOS AMBIENTALES AÑO 2025"]
[]
[null,"9. RESULTADOS  DEL PROYECTO"]
[]
[]
[]
[]
[]
[]
[]
[]
[null,null,{"$f":"+#REF!","v":{"$error":"#REF!"}},null,null,null,null,{"$f":"+#REF!","v":{"$error":"#REF!"}}]
[]
[null,null,"Columna1","Mes 1","Mes 2","Mes 3","Mes 4","Mes 5","Mes 6","PROMEDIO"]
[null,null,"Línea base",{"$f":"+#REF!","v":{"$error":"#REF!"}},{"$f":"+#REF!","v":{"$error":"#REF!"}},{"$f":"+#REF!","v":{"$error":"#REF!"}},{"$f":"+#REF!","v":{"$error":"#REF!"}},{"$f":"+#REF!","v":{"$error":"#REF!"}},{"$f":"+#REF!","v":{"$error":"#REF!"}},{"$f":"AVERAGE(Tabla4[[#This Row],[Mes 1]:[Mes 6]])","v":{"$error":"#REF!"}}]
[null,null,"Meta",259.60000000000002,259.60000000000002,259.60000000000002,259.60000000000002,259.60000000000002,259.60000000000002,{"$f":"AVERAGE(Tabla4[[#This Row],[Mes 1]:[Mes 6]])","v":259.59999999999997}]
[null,null,"Resultado consumo o generación actual",1100,1000,1110,1215,1423,1400,{"$f":"AVERAGE(Tabla4[[#This Row],[Mes 1]:[Mes 6]])","v":1208}]
[null,null,"Reducción real",{"$f":"+D16-D18","v":{"$error":"#REF!"}},{"$error":"#REF!"},{"$error":"#REF!"},{"$error":"#REF!"},{"$error":"#REF!"},{"$error":"#REF!"},{"$f":"AVERAGE(Tabla4[[#This Row],[Mes 1]:[Mes 6]])","v":{"$error":"#REF!"}}]
[null,null,"% de cumplimiento de la meta",{"$f":"(D19/D17)","v":{"$error":"#REF!"}},{"$f":"(E19/E17)","v":{"$error":"#REF!"}},{"$error":"#REF!"},{"$error":"#REF!"},{"$error":"#REF!"},{"$error":"#REF!"},{"$f":"AVERAGE(Tabla4[[#This Row],[Mes 1]:[Mes 6]])","v":{"$error":"#REF!"}}]
[null,null,null,null,null,null,null,null,null,{"$f":"AVERAGE(J16:J20)","v":{"$error":"#REF!"}}]
[null,null,"Columna1","Mes 1","Mes 2","Mes 3","Mes 4","Mes 5","Mes 6","TOTAL"]
[null,null,"Resultado consumo o generación actual",1100,1000,1110,1215,1423,1400]
[null,null,"Unidad de producción",50,50,50,50,50,50]
[null,null,"Costo ",{"$f":"500000/$D$23","v":454.54545454545456},{"$f":"500000/$E$23","v":500},{"$f":"500000/$F$23","v":450.45045045045043},{"$f":"500000/$G$23","v":411.52263374485597},{"$f":"500000/$H$23","v":351.37034434293747},{"$f":"500000/$I$23","v":357.14285714285717}]
[null,null,"Relación índice de consumo después del proyecto ICDP",{"$f":"D24/D23","v":4.5454545454545456E-2},0.05,4.5045045045045043E-2,4.1152263374485597E-2,3.5137034434293744E-2,3.5714285714285712E-2]
[null,null,"%cumplimiento de mejora",{"$f":"(#REF!-D26)/#REF!","v":{"$error":"#REF!"}},{"$f":"(#REF!-E26)/#REF!","v":{"$error":"#REF!"}},{"$f":"(#REF!-F26)/#REF!","v":{"$error":"#REF!"}},{"$f":"(#REF!-G26)/#REF!","v":{"$error":"#REF!"}},{"$f":"(#REF!-H26)/#REF!","v":{"$error":"#REF!"}},{"$f":"(#REF!-I26)/#REF!","v":{"$error":"#REF!"}},null,null,"Componente beneficio principal",null,"Resultado Ambiental  (mes)",null,"Resultado económico  (mes/$)"]
[null,null,"Ahorro total",{"$f":"+D23*D25","v":500000},{"$f":"E25*E23","v":500000},{"$f":"F25*F23","v":500000},500000,500000,500000.00000000006,null,null,{"$f":"+C13","v":{"$error":"#REF!"}},null,null,null,{"$f":"+N28*$K$21","v":0}]
[]
[]
[]
[]
[]
[]
[]
[]
[]
[]
[]
[]
[null,null,"Columna1","Mes 1","Mes 2","Mes 3","Mes 4","Mes 5","Mes 6","TOTAL"]
[null,null,"Línea base",{"$f":"+#REF!","v":{"$error":"#REF!"}},{"$f":"+#REF!","v":{"$error":"#REF!"}},{"$f":"+#REF!","v":{"$error":"#REF!"}},{"$f":"+#REF!","v":{"$error":"#REF!"}},{"$f":"+#REF!","v":{"$error":"#REF!"}},{"$f":"+#REF!","v":{"$error":"#REF!"}}]
[null,null,"Meta"]
[null,null,"Resultado consumo o generación actual"]
[null,null,"Reducción real"]
[null,null,"% de cumplimiento de la meta"]
[]
[null,null,{"$f":"+#REF!","v":{"$error":"#REF!"}},null,null,null,null,{"$f":"+#REF!","v":{"$error":"#REF!"}}]
[]
[null,null,"Columna1","Mes 1","Mes 2","Mes 3","Mes 4","Mes 5","Mes 6","TOTAL"]
[null,null,"Resultado consumo o generación actual"]
[null,null,"Unidad de producción"]
[null,null,"Costo "]
[null,null,"Relación índice de consumo después del proyecto",null,null,null,null,null,null,null,null,"Componente beneficio principal",null,"Resultado Ambiental  (mes)",null,"Resultado económico  (mes/$)"]
[null,null,"%cumplimiento de mejora",null,null,null,null,null,null,null,null,{"$f":"+C48","v":{"$error":"#REF!"}},null,null,null,{"$f":"+N55*$K$21","v":0}]
[null,null,"Ahorro total"]
[]
[]
[]
[]
[]
[]
[]
[]
[]
[]
[]
[]
[]
[]
[]
[null,"10. REGISTRO FOTOGRÁFICO"]

{"sheet":"Costos del proyecto","index":4,"n_rows":44,"n_cols":18,"rows_kept":44,"cut":false,"hidden":false,"merged":[[13,3,13,6],[13,7,13,8],[13,9,13,10],[16,3,16,6],[16,9,16,10],[15,3,15,6],[15,7,15,8],[15,9,15,10],[16,7,16,8],[14,3,14,6],[14,7,14,8],[14,9,14,10],[1,5,1,12],[2,2,2,17],[3,2,3,17],[1,2,1,4],[1,13,1,17],[10,3,10,12],[23,3,23,6],[23,7,23,8],[23,9,23,10],[18,3,18,6],[21,9,21,10],[21,3,21,6],[21,7,21,8],[22,3,22,6],[11,3,11,6],[11,7,11,8],[11,9,11,10],[12,3,12,6],[12,7,12,8],[12,9,12,10],[18,9,18,10],[29,14,30,16],[29,9,29,11],[31,8,31,11],[32,9,32,11],[27,3,27,6],[27,7,27,8],[27,9,27,10],[28,3,28,6],[28,7,28,8],[28,9,28,10],[14,15,16,17],[26,3,26,6],[26,7,26,8],[23,14,24,15],[24,3,24,6],[24,7,24,8],[24,9,24,10],[17,9,17,10],[17,3,17,6],[17,7,17,8],[22,9,22,10],[18,7,18,8],[22,7,22,8],[25,9,25,10],[19,9,19,11],[41,6,41,7],[43,6,43,7],[37,3,43,5],[34,8,34,12],[25,3,25,6],[25,7,25,8],[33,7,33,11],[26,9,26,10],[30,6,30,11],[37,6,37,7],[39,6,39,7],[37,10,37,11]]}
[null,null,null,null,null,null,null,null,null,null,null,null,null,null,null,null,null,"VERSIÓN 3.0"]
["MENÚ",null,null,null,null,"FORMATO PARA LA PRESENTACIÓN DE\nPROYECTOS AMBIENTALES AÑO 2026"]
[]
[null,null,"3. COSTOS DEL PROYECTO"]
[]
[]
[]
[]
[]
[]
[null,null,null,"Nota: La hoja se encuentra protegida en algunas celdas. Por favor, registre manualmente los datos de su organización en los campos de color verde claro."]
[null,null,null,"Costos de inversión",null,null,null,"Unidad de medida",null,"Valor de la unidad de medida",null,"Cantidad","Total"]
[null,null,null,"Equipos. Describa cuales equipos necesita para realizar el proyecto",null,null,null,"Unidad",null,null,null,null,{"$f":"J13*L13","v":0}]
[null,null,null,"Herramientas. Describa las herramientas adquiridas",null,null,null,"Unidad",null,null,null,null,{"$f":"J14*L14","v":0}]
[null,null,null,"Instalaciones iniciales. Ejemplo: instalación de tuberías",null,null,null,"Unidad",null,null,null,null,0]
[null,null,null,"Software y licencias. Ejemplo: licencias de análisis",null,null,null,"Unidad",null,null,null,null,0]
[null,null,null,"Consultoría técnica. Ejemplo: Estudios de viabilidad",null,null,null,"Unidad",null,null,null,null,0]
[null,null,null,"Incentivos Tributarios",null,null,null,"Unidad",null,null,null,null,0]
[null,null,null,"Otros: Permisos, trámites",null,null,null,"Unidad",null,null,null,null,0]
[null,null,null,null,null,null,null,null,null,"Sub total Inversión",null,null,{"$f":"SUM(M13:M19)","v":0}]
[]
[null,null,null,"Costos operativos mensuales",null,null,null,"Unidad de medida",null,"Valor de la unidad de medida",null,"Cantidad","Total"]
[null,null,null,"Mano de obra. Describa la mano de obra del proyecto. Ejemplo: técnicos, supervisores",null,null,null,"Horas hombre",null,null,null,null,{"$f":"J23*L23","v":0}]
[null,null,null,"Mantenimiento. Ejemplo: calibración de sensores o equipos",null,null,null,"Servicio",null,null,null,null,{"$f":"J24*L24","v":0}]
[null,null,null,"Suministros y consumibles. Ejemplo: filtros, herramientas",null,null,null,"Unidad",null,null,null,null,0]
[null,null,null,"Energía eléctrica. Ejemplo: operación de bombas",null,null,null,"kwh",null,null,null,null,0]
[null,null,null,"Transporte. Ejemplo: logística para el traslado de personal o materiales",null,null,null,"Viaje",null,null,null,null,0]
[null,null,null,"Monitoreo y reportes. Ejemplo: Supervisión y generación de informes",null,null,null,"Informes",null,null,null,null,0]
[null,null,null,"Otros",null,null,null,null,null,null,null,null,0]
[null,null,null,null,null,null,null,null,null,"Costo operativo mensual",null,null,{"$f":"SUM(M23:M29)","v":0}]
[null,null,null,null,null,null,"Tiempo de ejecución del proyecto en meses",null,null,null,null,null,{"$f":"'Datos del del proyecto'!S18","v":0}]
[null,null,null,null,null,null,null,null,"Costo operativo total",null,null,null,{"$f":"+M30*$M$31","v":0}]
[null,null,null,null,null,null,null,null,null,"Total inversión",null,null,{"$f":"+M32+$M$20","v":0}]
[null,null,null,null,null,null,null,"Tiempo estimado para el retorno \nde la inversión en meses",null,null,null,null,{"$f":"IFERROR($M$33/('Línea Base y beneficios proy'!$F$29+'Línea Base y beneficios pro (2)'!$F$28+'Línea Base y beneficios pro (3)'!$F$28),\"\")","v":""}]
[]
[]
[]
[null,null,null,"Fuentes Financiamiento",null,null,"Recursos propios"]
[]
[null,null,null,null,null,null,"Préstamos"]
[]
[null,null,null,null,null,null,"  Cooperación Internacional"]
[]
[null,null,null,null,null,null,"Donaciones"]

{"sheet":"Resultados del proyecto ","index":5,"n_rows":103,"n_cols":22,"rows_kept":103,"cut":false,"hidden":false,"merged":[[79,5,79,6],[10,3,10,6],[48,3,48,4],[49,3,49,4],[37,3,37,9],[19,3,19,6],[50,3,50,18],[10,10,10,12],[43,3,43,9],[43,11,43,18],[25,3,25,6],[53,3,53,18],[68,3,68,18],[41,3,41,9],[41,11,41,18],[21,6,22,6],[4,3,4,14],[2,2,2,14],[1,6,1,13],[1,2,1,5],[1,14,1,18],[3,2,3,18],[9,3,9,6],[9,10,9,12],[9,7,9,8],[20,1,21,2],[20,8,21,12],[10,7,10,8],[12,10,12,15]]}
[null,null,null,null,null,null,null,null,null,null,null,null,null,null,null,null,null,"VERSIÓN 2.0"]
["MENÚ",null,null,null,null,null,"FORMATO PARA LA PRESENTACIÓN DE \nPROYECTOS AMBIENTALES AÑO 2026"]
[]
[null,null,"4. RESULTADOS  DEL PROYECTO PRINCIPAL"]
[null,null,null,"Nota: La hoja se encuentra protegida en algunas celdas. Por favor, registre manualmente los datos de su organización en los campos de color verde claro."]
[]
[]
[]
[]
[null,null,null,"Componente ambiental",null,null,null,"Unidad",null,null,"Mes de inicio de resultados"]
[null,null,null,{"$f":"+'Línea Base y beneficios proy'!D10:$H$10","v":0},null,null,null,{"$f":"+'Línea Base y beneficios proy'!$I$10","v":0}]
[]
[]
[null,null,null,"Ambiental","Mes 1","Mes 2","Mes 3","Mes 4","Mes 5","Mes 6","Mes 7","Mes 8","Mes 9","Mes 10","Mes 11","Mes 12","Total","Promedio"]
[null,null,null,"Meta",{"$f":"+'Línea Base y beneficios proy'!$F$28","v":""},{"$f":"+'Línea Base y beneficios proy'!$F$28","v":""},{"$f":"+'Línea Base y beneficios proy'!$F$28","v":""},{"$f":"+'Línea Base y beneficios proy'!$F$28","v":""},{"$f":"+'Línea Base y beneficios proy'!$F$28","v":""},{"$f":"+'Línea Base y beneficios proy'!$F$28","v":""},{"$f":"+'Línea Base y beneficios proy'!$F$28","v":""},{"$f":"+'Línea Base y beneficios proy'!$F$28","v":""},{"$f":"+'Línea Base y beneficios proy'!$F$28","v":""},{"$f":"+'Línea Base y beneficios proy'!$F$28","v":""},{"$f":"+'Línea Base y beneficios proy'!$F$28","v":""},{"$f":"+'Línea Base y beneficios proy'!$F$28","v":""},{"$f":"SUM(Tabla10[[#This Row],[Mes 1]:[Mes 12]])","v":0},{"$f":"AVERAGE(Tabla10[[#This Row],[Mes 1]:[Mes 12]])","v":{"$error":"#DIV/0!"}}]
[null,null,null,"Resultado consumo o generación",null,null,null,null,null,null,null,null,null,null,null,null,{"$f":"SUM(Tabla10[[#This Row],[Mes 1]:[Mes 12]])","v":0},{"$f":"AVERAGE(Tabla10[[#This Row],[Mes 1]:[Mes 12]])","v":{"$error":"#DIV/0!"}}]
[null,null,null,"Beneficio ambiental",{"$f":"IFERROR(IF($D$11=\"Uso eficiente de residuos orgánicos\",IF(OR('Línea Base y beneficios proy'!$R$15=\"\",E16=\"\"),\"\",E16-'Línea Base y beneficios proy'!$R$15),IF($D$11=\"Uso eficiente de residuos aprovechables\",IF(OR('Línea Base y beneficios proy'!$R$15=\"\",E16=\"\"),\"\",E16-'Línea Base y beneficios proy'!$R$15),IF(OR('Línea Base y beneficios proy'!$R$15=\"\",E16=\"\"),\"\",'Línea Base y beneficios proy'!$R$15-E16))),\"\")","v":""},{"$f":"IFERROR(IF($D$11=\"Uso eficiente de residuos orgánicos\",IF(OR('Línea Base y beneficios proy'!$R$15=\"\",F16=\"\"),\"\",F16-'Línea Base y beneficios proy'!$R$15),IF($D$11=\"Uso eficiente de residuos aprovechables\",IF(OR('Línea Base y beneficios proy'!$R$15=\"\",F16=\"\"),\"\",F16-'Línea Base y beneficios proy'!$R$15),IF(OR('Línea Base y beneficios proy'!$R$15=\"\",F16=\"\"),\"\",'Línea Base y beneficios proy'!$R$15-F16))),\"\")","v":""},{"$f":"IFERROR(IF($D$11=\"Uso eficiente de residuos orgánicos\",IF(OR('Línea Base y beneficios proy'!$R$15=\"\",G16=\"\"),\"\",G16-'Línea Base y beneficios proy'!$R$15),IF($D$11=\"Uso eficiente de residuos aprovechables\",IF(OR('Línea Base y beneficios proy'!$R$15=\"\",G16=\"\"),\"\",G16-'Línea Base y beneficios proy'!$R$15),IF(OR('Línea Base y beneficios proy'!$R$15=\"\",G16=\"\"),\"\",'Línea Base y beneficios proy'!$R$15-G16))),\"\")","v":""},{"$f":"IFERROR(IF($D$11=\"Uso eficiente de residuos orgánicos\",IF(OR('Línea Base y beneficios proy'!$R$15=\"\",H16=\"\"),\"\",H16-'Línea Base y beneficios proy'!$R$15),IF($D$11=\"Uso eficiente de residuos aprovechables\",IF(OR('Línea Base y beneficios proy'!$R$15=\"\",H16=\"\"),\"\",H16-'Línea Base y beneficios proy'!$R$15),IF(OR('Línea Base y beneficios proy'!$R$15=\"\",H16=\"\"),\"\",'Línea Base y beneficios proy'!$R$15-H16))),\"\")","v":""},{"$f":"IFERROR(IF($D$11=\"Uso eficiente de residuos orgánicos\",IF(OR('Línea Base y beneficios proy'!$R$15=\"\",I16=\"\"),\"\",I16-'Línea Base y beneficios proy'!$R$15),IF($D$11=\"Uso eficiente de residuos aprovechables\",IF(OR('Línea Base y beneficios proy'!$R$15=\"\",I16=\"\"),\"\",I16-'Línea Base y beneficios proy'!$R$15),IF(OR('Línea Base y beneficios proy'!$R$15=\"\",I16=\"\"),\"\",'Línea Base y beneficios proy'!$R$15-I16))),\"\")","v":""},{"$f":"IFERROR(IF($D$11=\"Uso eficiente de residuos orgánicos\",IF(OR('Línea Base y beneficios proy'!$R$15=\"\",J16=\"\"),\"\",J16-'Línea Base y beneficios proy'!$R$15),IF($D$11=\"Uso eficiente de residuos aprovechables\",IF(OR('Línea Base y beneficios proy'!$R$15=\"\",J16=\"\"),\"\",J16-'Línea Base y beneficios proy'!$R$15),IF(OR('Línea Base y beneficios proy'!$R$15=\"\",J16=\"\"),\"\",'Línea Base y beneficios proy'!$R$15-J16))),\"\")","v":""},{"$f":"IFERROR(IF($D$11=\"Uso eficiente de residuos orgánicos\",IF(OR('Línea Base y beneficios proy'!$R$15=\"\",K16=\"\"),\"\",K16-'Línea Base y beneficios proy'!$R$15),IF($D$11=\"Uso eficiente de residuos aprovechables\",IF(OR('Línea Base y beneficios proy'!$R$15=\"\",K16=\"\"),\"\",K16-'Línea Base y beneficios proy'!$R$15),IF(OR('Línea Base y beneficios proy'!$R$15=\"\",K16=\"\"),\"\",'Línea Base y beneficios proy'!$R$15-K16))),\"\")","v":""},{"$f":"IFERROR(IF($D$11=\"Uso eficiente de residuos orgánicos\",IF(OR('Línea Base y beneficios proy'!$R$15=\"\",L16=\"\"),\"\",L16-'Línea Base y beneficios proy'!$R$15),IF($D$11=\"Uso eficiente de residuos aprovechables\",IF(OR('Línea Base y beneficios proy'!$R$15=\"\",L16=\"\"),\"\",L16-'Línea Base y beneficios proy'!$R$15),IF(OR('Línea Base y beneficios proy'!$R$15=\"\",L16=\"\"),\"\",'Línea Base y beneficios proy'!$R$15-L16))),\"\")","v":""},{"$f":"IFERROR(IF($D$11=\"Uso eficiente de residuos orgánicos\",IF(OR('Línea Base y beneficios proy'!$R$15=\"\",M16=\"\"),\"\",M16-'Línea Base y beneficios proy'!$R$15),IF($D$11=\"Uso eficiente de residuos aprovechables\",IF(OR('Línea Base y beneficios proy'!$R$15=\"\",M16=\"\"),\"\",M16-'Línea Base y beneficios proy'!$R$15),IF(OR('Línea Base y beneficios proy'!$R$15=\"\",M16=\"\"),\"\",'Línea Base y beneficios proy'!$R$15-M16))),\"\")","v":""},{"$f":"IFERROR(IF($D$11=\"Uso eficiente de residuos orgánicos\",IF(OR('Línea Base y beneficios proy'!$R$15=\"\",N16=\"\"),\"\",N16-'Línea Base y beneficios proy'!$R$15),IF($D$11=\"Uso eficiente de residuos aprovechables\",IF(OR('Línea Base y beneficios proy'!$R$15=\"\",N16=\"\"),\"\",N16-'Línea Base y beneficios proy'!$R$15),IF(OR('Línea Base y beneficios proy'!$R$15=\"\",N16=\"\"),\"\",'Línea Base y beneficios proy'!$R$15-N16))),\"\")","v":""},{"$f":"IFERROR(IF($D$11=\"Uso eficiente de residuos orgánicos\",IF(OR('Línea Base y beneficios proy'!$R$15=\"\",O16=\"\"),\"\",O16-'Línea Base y beneficios proy'!$R$15),IF($D$11=\"Uso eficiente de residuos aprovechables\",IF(OR('Línea Base y beneficios proy'!$R$15=\"\",O16=\"\"),\"\",O16-'Línea Base y beneficios proy'!$R$15),IF(OR('Línea Base y beneficios proy'!$R$15=\"\",O16=\"\"),\"\",'Línea Base y beneficios proy'!$R$15-O16))),\"\")","v":""},{"$f":"IFERROR(IF($D$11=\"Uso eficiente de residuos orgánicos\",IF(OR('Línea Base y beneficios proy'!$R$15=\"\",P16=\"\"),\"\",P16-'Línea Base y beneficios proy'!$R$15),IF($D$11=\"Uso eficiente de residuos aprovechables\",IF(OR('Línea Base y beneficios proy'!$R$15=\"\",P16=\"\"),\"\",P16-'Línea Base y beneficios proy'!$R$15),IF(OR('Línea Base y beneficios proy'!$R$15=\"\",P16=\"\"),\"\",'Línea Base y beneficios proy'!$R$15-P16))),\"\")","v":""},{"$f":"SUM(Tabla10[[#This Row],[Mes 1]:[Mes 12]])","v":0},{"$f":"AVERAGE(Tabla10[[#This Row],[Mes 1]:[Mes 12]])","v":{"$error":"#DIV/0!"}}]
[null,null,null,"Meta promedio proyección ambiental",{"$f":"'Línea Base y beneficios proy'!$R$16","v":{"$error":"#DIV/0!"}},{"$f":"'Línea Base y beneficios proy'!$R$16","v":{"$error":"#DIV/0!"}},{"$f":"'Línea Base y beneficios proy'!$R$16","v":{"$error":"#DIV/0!"}},{"$f":"'Línea Base y beneficios proy'!$R$16","v":{"$error":"#DIV/0!"}},{"$f":"'Línea Base y beneficios proy'!$R$16","v":{"$error":"#DIV/0!"}},{"$f":"'Línea Base y beneficios proy'!$R$16","v":{"$error":"#DIV/0!"}},{"$f":"'Línea Base y beneficios proy'!$R$16","v":{"$error":"#DIV/0!"}},{"$f":"'Línea Base y beneficios proy'!$R$16","v":{"$error":"#DIV/0!"}},{"$f":"'Línea Base y beneficios proy'!$R$16","v":{"$error":"#DIV/0!"}},{"$f":"'Línea Base y beneficios proy'!$R$16","v":{"$error":"#DIV/0!"}},{"$f":"'Línea Base y beneficios proy'!$R$16","v":{"$error":"#DIV/0!"}},{"$f":"'Línea Base y beneficios proy'!$R$16","v":{"$error":"#DIV/0!"}}]
[]
[null,null,null,"Resultados concluyentes del proyecto"]
[]
[null,null,null,"% de cumplimiento promedio meta","% de mejoramiento promedio "]
[null,null,null,{"$f":"R17*100/R15","v":{"$error":"#DIV/0!"}},{"$f":"R17*100/'Línea Base y beneficios proy'!R15","v":{"$error":"#DIV/0!"}}]
[]
[]
[null,null,null,"Componente económico"]
[]
[null,null,null,"Económico","Mes 1","Mes 2","Mes 3","Mes 4","Mes 5","Mes 6","Mes 7","Mes 8","Mes 9","Mes 10","Mes 11","Mes 12","Total","Promedio"]
[null,null,null,"Meta",{"$f":"+'Línea Base y beneficios proy'!$F$29","v":"0"},{"$f":"+'Línea Base y beneficios proy'!$F$29","v":"0"},{"$f":"+'Línea Base y beneficios proy'!$F$29","v":"0"},{"$f":"+'Línea Base y beneficios proy'!$F$29","v":"0"},{"$f":"+'Línea Base y beneficios proy'!$F$29","v":"0"},{"$f":"+'Línea Base y beneficios proy'!$F$29","v":"0"},{"$f":"+'Línea Base y beneficios proy'!$F$29","v":"0"},{"$f":"+'Línea Base y beneficios proy'!$F$29","v":"0"},{"$f":"+'Línea Base y beneficios proy'!$F$29","v":"0"},{"$f":"+'Línea Base y beneficios proy'!$F$29","v":"0"},{"$f":"+'Línea Base y beneficios proy'!$F$29","v":"0"},{"$f":"+'Línea Base y beneficios proy'!$F$29","v":"0"},{"$f":"SUM(Tabla479613[[#This Row],[Mes 1]:[Mes 12]])","v":0},{"$f":"AVERAGE(Tabla479613[[#This Row],[Mes 1]:[Mes 12]])","v":{"$error":"#DIV/0!"}}]
[null,null,null,"Resultado económico",null,null,null,null,null,null,null,null,null,null,null,null,{"$f":"SUM(Tabla479613[[#This Row],[Mes 1]:[Mes 12]])","v":0},{"$f":"AVERAGE(Tabla479613[[#This Row],[Mes 1]:[Mes 12]])","v":{"$error":"#DIV/0!"}}]
[null,null,null,"Beneficio económico",{"$f":"IFERROR(IF($D$11=\"Uso eficiente de residuos orgánicos\",IF(OR('Línea Base y beneficios proy'!$R$17=\"\",E30=\"\"),\"\",E30-'Línea Base y beneficios proy'!$R$17),IF($D$11=\"Uso eficiente de residuos aprovechables\",IF(OR('Línea Base y beneficios proy'!$R$17=\"\",E30=\"\"),\"\",E30-'Línea Base y beneficios proy'!$R$17),IF(OR('Línea Base y beneficios proy'!$R$17=\"\",E30=\"\"),\"\",'Línea Base y beneficios proy'!$R$17-E30))),\"\")","v":""},{"$f":"IFERROR(IF($D$11=\"Uso eficiente de residuos orgánicos\",IF(OR('Línea Base y beneficios proy'!$R$17=\"\",F30=\"\"),\"\",F30-'Línea Base y beneficios proy'!$R$17),IF($D$11=\"Uso eficiente de residuos aprovechables\",IF(OR('Línea Base y beneficios proy'!$R$17=\"\",F30=\"\"),\"\",F30-'Línea Base y beneficios proy'!$R$17),IF(OR('Línea Base y beneficios proy'!$R$17=\"\",F30=\"\"),\"\",'Línea Base y beneficios proy'!$R$17-F30))),\"\")","v":""},{"$f":"IFERROR(IF($D$11=\"Uso eficiente de residuos orgánicos\",IF(OR('Línea Base y beneficios proy'!$R$17=\"\",G30=\"\"),\"\",G30-'Línea Base y beneficios proy'!$R$17),IF($D$11=\"Uso eficiente de residuos aprovechables\",IF(OR('Línea Base y beneficios proy'!$R$17=\"\",G30=\"\"),\"\",G30-'Línea Base y beneficios proy'!$R$17),IF(OR('Línea Base y beneficios proy'!$R$17=\"\",G30=\"\"),\"\",'Línea Base y beneficios proy'!$R$17-G30))),\"\")","v":""},{"$f":"IFERROR(IF($D$11=\"Uso eficiente de residuos orgánicos\",IF(OR('Línea Base y beneficios proy'!$R$17=\"\",H30=\"\"),\"\",H30-'Línea Base y beneficios proy'!$R$17),IF($D$11=\"Uso eficiente de residuos aprovechables\",IF(OR('Línea Base y beneficios proy'!$R$17=\"\",H30=\"\"),\"\",H30-'Línea Base y beneficios proy'!$R$17),IF(OR('Línea Base y beneficios proy'!$R$17=\"\",H30=\"\"),\"\",'Línea Base y beneficios proy'!$R$17-H30))),\"\")","v":""},{"$f":"IFERROR(IF($D$11=\"Uso eficiente de residuos orgánicos\",IF(OR('Línea Base y beneficios proy'!$R$17=\"\",I30=\"\"),\"\",I30-'Línea Base y beneficios proy'!$R$17),IF($D$11=\"Uso eficiente de residuos aprovechables\",IF(OR('Línea Base y beneficios proy'!$R$17=\"\",I30=\"\"),\"\",I30-'Línea Base y beneficios proy'!$R$17),IF(OR('Línea Base y beneficios proy'!$R$17=\"\",I30=\"\"),\"\",'Línea Base y beneficios proy'!$R$17-I30))),\"\")","v":""},{"$f":"IFERROR(IF($D$11=\"Uso eficiente de residuos orgánicos\",IF(OR('Línea Base y beneficios proy'!$R$17=\"\",J30=\"\"),\"\",J30-'Línea Base y beneficios proy'!$R$17),IF($D$11=\"Uso eficiente de residuos aprovechables\",IF(OR('Línea Base y beneficios proy'!$R$17=\"\",J30=\"\"),\"\",J30-'Línea Base y beneficios proy'!$R$17),IF(OR('Línea Base y beneficios proy'!$R$17=\"\",J30=\"\"),\"\",'Línea Base y beneficios proy'!$R$17-J30))),\"\")","v":""},{"$f":"IFERROR(IF($D$11=\"Uso eficiente de residuos orgánicos\",IF(OR('Línea Base y beneficios proy'!$R$17=\"\",K30=\"\"),\"\",K30-'Línea Base y beneficios proy'!$R$17),IF($D$11=\"Uso eficiente de residuos aprovechables\",IF(OR('Línea Base y beneficios proy'!$R$17=\"\",K30=\"\"),\"\",K30-'Línea Base y beneficios proy'!$R$17),IF(OR('Línea Base y beneficios proy'!$R$17=\"\",K30=\"\"),\"\",'Línea Base y beneficios proy'!$R$17-K30))),\"\")","v":""},{"$f":"IFERROR(IF($D$11=\"Uso eficiente de residuos orgánicos\",IF(OR('Línea Base y beneficios proy'!$R$17=\"\",L30=\"\"),\"\",L30-'Línea Base y beneficios proy'!$R$17),IF($D$11=\"Uso eficiente de residuos aprovechables\",IF(OR('Línea Base y beneficios proy'!$R$17=\"\",L30=\"\"),\"\",L30-'Línea Base y beneficios proy'!$R$17),IF(OR('Línea Base y beneficios proy'!$R$17=\"\",L30=\"\"),\"\",'Línea Base y beneficios proy'!$R$17-L30))),\"\")","v":""},{"$f":"IFERROR(IF($D$11=\"Uso eficiente de residuos orgánicos\",IF(OR('Línea Base y beneficios proy'!$R$17=\"\",M30=\"\"),\"\",M30-'Línea Base y beneficios proy'!$R$17),IF($D$11=\"Uso eficiente de residuos aprovechables\",IF(OR('Línea Base y beneficios proy'!$R$17=\"\",M30=\"\"),\"\",M30-'Línea Base y beneficios proy'!$R$17),IF(OR('Línea Base y beneficios proy'!$R$17=\"\",M30=\"\"),\"\",'Línea Base y beneficios proy'!$R$17-M30))),\"\")","v":""},{"$f":"IFERROR(IF($D$11=\"Uso eficiente de residuos orgánicos\",IF(OR('Línea Base y beneficios proy'!$R$17=\"\",N30=\"\"),\"\",N30-'Línea Base y beneficios proy'!$R$17),IF($D$11=\"Uso eficiente de residuos aprovechables\",IF(OR('Línea Base y beneficios proy'!$R$17=\"\",N30=\"\"),\"\",N30-'Línea Base y beneficios proy'!$R$17),IF(OR('Línea Base y beneficios proy'!$R$17=\"\",N30=\"\"),\"\",'Línea Base y beneficios proy'!$R$17-N30))),\"\")","v":""},{"$f":"IFERROR(IF($D$11=\"Uso eficiente de residuos orgánicos\",IF(OR('Línea Base y beneficios proy'!$R$17=\"\",O30=\"\"),\"\",O30-'Línea Base y beneficios proy'!$R$17),IF($D$11=\"Uso eficiente de residuos aprovechables\",IF(OR('Línea Base y beneficios proy'!$R$17=\"\",O30=\"\"),\"\",O30-'Línea Base y beneficios proy'!$R$17),IF(OR('Línea Base y beneficios proy'!$R$17=\"\",O30=\"\"),\"\",'Línea Base y beneficios proy'!$R$17-O30))),\"\")","v":""},{"$f":"IFERROR(IF($D$11=\"Uso eficiente de residuos orgánicos\",IF(OR('Línea Base y beneficios proy'!$R$17=\"\",P30=\"\"),\"\",P30-'Línea Base y beneficios proy'!$R$17),IF($D$11=\"Uso eficiente de residuos aprovechables\",IF(OR('Línea Base y beneficios proy'!$R$17=\"\",P30=\"\"),\"\",P30-'Línea Base y beneficios proy'!$R$17),IF(OR('Línea Base y beneficios proy'!$R$17=\"\",P30=\"\"),\"\",'Línea Base y beneficios proy'!$R$17-P30))),\"\")","v":""},{"$f":"SUM(Tabla479613[[#This Row],[Mes 1]:[Mes 12]])","v":0},{"$f":"AVERAGE(Tabla479613[[#This Row],[Mes 1]:[Mes 12]])","v":{"$error":"#DIV/0!"}}]
[]
[]
[]
[]
[]
[]
[]
[]
[]
[]
[null,null,null,"Componente Ambiental",null,null,null,null,null,null,null,"Componente Económico"]
[]
[null,null,null,"Componente ambiental, la línea base inicial indicaba un consumo promedio mensual de XXXXX. Tras implementar las medidas propuestas, se alcanzó una reducción real de XXXX mensuales en promedio, representando un % de disminución respecto a la línea base. ",null,null,null,null,null,null,null,"Componente económico, se proyectó un ahorro de $XXX en costos asociados al consumo o generación de XXXX. Al cierre, los beneficios obtenidos alcanzaron los $xxx, esto representa un cumplimiento del xx% respecto a las expectativas económicas del período."]
[]
[]
[]
[]
[]
[]
[null,null,null,"EVIDENCIAS DE IMPLEMENTACIÓN"]
[]
[]
[null,null,null,"Cálculos y resultados obtenidos"]
[]
[]
[]
[]
[]
[]
[]
[]
[]
[]
[]
[]
[]
[]
[null,null,null,"Fotografías y evidencias de implementación"]
[]
[]
[]
[]
[]
[]
[]
[]
[]
[]
[]
[]
[]
[]
[]
[]
[]
[]
[]
[]
[]
[]
[]
[]
[]
[]
[]
[]
[]
[]
[]
[]
[]
[null,null,null,null,null,null,null,null,null,null,null,null,null,null,null,null,null,null,null,null,null,"OBSERVACIONES TUTOR "]

{"sheet":"Línea Base y beneficios pro (2)","index":6,"n_rows":81,"n_cols":20,"rows_kept":81,"cut":false,"hidden":false,"merged":[[4,2,4,19],[8,3,8,7],[8,8,8,9],[8,11,8,14],[12,21,12,22],[1,2,1,4],[1,5,1,14],[1,15,1,19],[2,2,2,18],[3,3,3,17],[37,2,37,18],[80,2,80,18],[9,3,9,7],[9,8,9,9],[9,11,9,13],[31,2,31,18],[36,4,36,16]]}
[null,null,null,null,null,null,null,null,null,null,null,null,null,null,null,null,null,null,null,"VERSIÓN 2.0"]
["MENÚ",null,null,null,null,"FORMATO PARA LA PRESENTACIÓN DE \nPROYECTOS AMBIENTALES AÑO 2026"]
[]
[null,null,null,"Nota: La hoja se encuentra protegida en algunas celdas. Por favor, registre manualmente los datos de su organización en los campos de color verde claro."]
[null,null,"5. LINEA BASE Y BENEFICIOS COMPLEMENTARIOS 1"]
[]
[]
[]
[null,null,null,"Componente ambiental",null,null,null,null,"Unidad",null,null,"Mes de inicio de la línea base"]
[]
[]
[]
[]
[null,null,null,"Línea Base","Mes 1","Mes 2","Mes 3","Mes 4","Mes 5","Mes 6","Mes 7","Mes 8","Mes 9","Mes 10","Mes 11","Mes 12","Total","Promedio mes","Mín.","Máx."]
[null,null,null,"Consumo o generación",null,null,null,null,null,null,null,null,null,null,null,null,{"$f":"SUM(TablaLineaBase21[[#This Row],[Mes 1]:[Mes 12]])","v":0},{"$f":"AVERAGE(TablaLineaBase21[[#This Row],[Mes 1]:[Mes 12]])","v":{"$error":"#DIV/0!"}},{"$f":"MIN(TablaLineaBase21[[#This Row],[Mes 1]:[Mes 12]])","v":0},{"$f":"MAX(TablaLineaBase21[[#This Row],[Mes 1]:[Mes 12]])","v":0}]
[null,null,null,"Consumo o generación proyectado",{"$f":"IFERROR(IF($D$10=\"Uso eficiente de residuos orgánicos\",IF(E15+$F$27<=$F$27,\"\",E15+$F$27),IF($D$10=\"Uso eficiente de residuos aprovechables\",IF(E15+$F$27<=$F$27,\"\",E15+$F$27),IF(E15-$F$27<0,\"\",E15-$F$27))),\"\")","v":""},{"$f":"IFERROR(IF($D$10=\"Uso eficiente de residuos orgánicos\",IF(F15+$F$27<=$F$27,\"\",F15+$F$27),IF($D$10=\"Uso eficiente de residuos aprovechables\",IF(F15+$F$27<=$F$27,\"\",F15+$F$27),IF(F15-$F$27<0,\"\",F15-$F$27))),\"\")","v":""},"","","","","","","","","","",{"$f":"SUM(TablaLineaBase21[[#This Row],[Mes 1]:[Mes 12]])","v":0},{"$f":"AVERAGE(TablaLineaBase21[[#This Row],[Mes 1]:[Mes 12]])","v":{"$error":"#DIV/0!"}},{"$f":"MIN(TablaLineaBase21[[#This Row],[Mes 1]:[Mes 12]])","v":0},{"$f":"MAX(TablaLineaBase21[[#This Row],[Mes 1]:[Mes 12]])","v":0}]
[null,null,null,"Costo ",null,null,null,null,null,null,null,null,null,null,null,null,{"$f":"SUM(TablaLineaBase21[[#This Row],[Mes 1]:[Mes 12]])","v":0},{"$f":"AVERAGE(TablaLineaBase21[[#This Row],[Mes 1]:[Mes 12]])","v":{"$error":"#DIV/0!"}},{"$f":"MIN(TablaLineaBase21[[#This Row],[Mes 1]:[Mes 12]])","v":0},{"$f":"MAX(TablaLineaBase21[[#This Row],[Mes 1]:[Mes 12]])","v":0}]
[null,null,null,"Promedio consumo o generación",{"$f":"+$R$15","v":{"$error":"#DIV/0!"}},{"$f":"+$R$15","v":{"$error":"#DIV/0!"}},{"$error":"#DIV/0!"},{"$error":"#DIV/0!"},{"$error":"#DIV/0!"},{"$error":"#DIV/0!"},{"$error":"#DIV/0!"},{"$error":"#DIV/0!"},{"$error":"#DIV/0!"},{"$error":"#DIV/0!"},{"$error":"#DIV/0!"},{"$error":"#DIV/0!"}]
[null,null,null,"Promedio proyección beneficio ambiental",{"$f":"+$R$16","v":{"$error":"#DIV/0!"}},{"$f":"+$R$16","v":{"$error":"#DIV/0!"}},{"$error":"#DIV/0!"},{"$error":"#DIV/0!"},{"$error":"#DIV/0!"},{"$error":"#DIV/0!"},{"$error":"#DIV/0!"},{"$error":"#DIV/0!"},{"$error":"#DIV/0!"},{"$error":"#DIV/0!"},{"$error":"#DIV/0!"},{"$error":"#DIV/0!"}]
[null,null,null,"Máximo",{"$f":"$T$15","v":0},{"$f":"$T$15","v":0},0,0,0,0,0,0,0,0,0,0]
[null,null,null,"Mínimo",{"$f":"$S$15","v":0},{"$f":"$S$15","v":0},0,0,0,0,0,0,0,0,0,0]
[]
[]
[]
[]
[null,null,null,"Beneficio proyectado","% Beneficio proyectado","Mensual proyectado","No de meses proyectados","Beneficio total"]
[null,null,null,"Ambiental (Consumo o generación)",null,{"$f":"IFERROR(TablaBeneProyectado22[[#This Row],[% Beneficio proyectado]]*$R$15,\"\")","v":""},null,{"$f":"IFERROR(TablaBeneProyectado22[[#This Row],[Mensual proyectado]]*TablaBeneProyectado22[[#This Row],[No de meses proyectados]],\"\")","v":""}]
[null,null,null,"Económico",null,{"$f":"IFERROR(TablaBeneProyectado22[[#This Row],[% Beneficio proyectado]]*$R$17,\"0\")","v":"0"},null,{"$f":"IFERROR(TablaBeneProyectado22[[#This Row],[Mensual proyectado]]*TablaBeneProyectado22[[#This Row],[No de meses proyectados]],\"\")","v":0}]
[]
[]
[]
[null,null,"CÁLCULOS COMPLEMENTARIOS PARA ESTIMAR LA LÍNEA BASE Y LOS BENEFICIOS PROYECTADOS"]
[]
[]
[]
[]
[]
[null,null,"Evidencias estimación línea base"]
[]
[]
[]
[]
[]
[]
[]
[]
[]
[]
[]
[]
[]
[]
[]
[]
[]
[]
[]
[]
[]
[]
[]
[]
[]
[]
[]
[]
[]
[]
[]
[]
[]
[]
[]
[]
[]
[]
[]
[]
[]
[]
[null,null,"Cálculos / justificación beneficios ambientales y económicos proyectados"]

{"sheet":"Resultados del proyecto  (2)","index":7,"n_rows":105,"n_cols":23,"rows_kept":105,"cut":false,"hidden":false,"merged":[[4,3,4,14],[10,3,10,6],[12,10,12,15],[20,3,20,6],[10,10,10,12],[9,3,9,6],[9,7,9,8],[9,10,9,12],[10,7,10,8],[8,3,8,6],[8,7,8,8],[1,2,1,5],[1,6,1,13],[1,14,1,18],[2,2,2,14],[3,2,3,18],[21,1,22,2],[21,8,22,12],[26,3,26,6],[39,3,39,9],[82,5,82,6],[44,3,44,9],[44,11,44,18],[46,3,46,9],[46,11,46,18],[104,22,108,23],[51,3,51,4],[52,3,52,4],[53,3,53,18],[56,3,56,18],[71,3,71,18]]}
[null,null,null,null,null,null,null,null,null,null,null,null,null,null,null,null,null,"VERSIÓN 3.0"]
["MENÚ",null,null,null,null,null,"FORMATO PARA LA PRESENTACIÓN DE \nPROYECTOS AMBIENTALES AÑO 2026"]
[]
[null,null,"6. RESULTADOS COMPLEMENTARIOS 1"]
[null,null,null,"Nota: La hoja se encuentra protegida en algunas celdas. Por favor, registre manulamente los datos de su organización en los campos de color verde claro."]
[]
[]
[]
[]
[null,null,null,"Componente ambiental",null,null,null,"Unidad",null,null,"Mes de inicio de resultados"]
[null,null,null,{"$f":"+'Línea Base y beneficios pro (2)'!$D$10:$H$10","v":0},null,null,null,{"$f":"'Línea Base y beneficios pro (2)'!$I$10","v":0}]
[]
[]
[null,null,null,"Ambiental","Mes 1","Mes 2","Mes 3","Mes 4","Mes 5","Mes 6","Mes 7","Mes 8","Mes 9","Mes 10","Mes 11","Mes 12","Total","Promedio"]
[null,null,null,"Meta",{"$f":"'Línea Base y beneficios pro (2)'!$F$27","v":""},{"$f":"'Línea Base y beneficios pro (2)'!$F$27","v":""},{"$f":"'Línea Base y beneficios pro (2)'!$F$27","v":""},{"$f":"'Línea Base y beneficios pro (2)'!$F$27","v":""},{"$f":"'Línea Base y beneficios pro (2)'!$F$27","v":""},{"$f":"'Línea Base y beneficios pro (2)'!$F$27","v":""},{"$f":"'Línea Base y beneficios pro (2)'!$F$27","v":""},{"$f":"'Línea Base y beneficios pro (2)'!$F$27","v":""},{"$f":"'Línea Base y beneficios pro (2)'!$F$27","v":""},{"$f":"'Línea Base y beneficios pro (2)'!$F$27","v":""},{"$f":"'Línea Base y beneficios pro (2)'!$F$27","v":""},{"$f":"'Línea Base y beneficios pro (2)'!$F$27","v":""},{"$f":"SUM($E$15:$P$15)","v":0},{"$f":"AVERAGE($E$15:$P$15)","v":{"$error":"#DIV/0!"}}]
[null,null,null,"Resultado consumo o generación",null,null,null,null,null,null,null,null,null,null,null,null,{"$f":"SUM($E$16:$P$16)","v":0},{"$f":"AVERAGE($E$16:$P$16)","v":{"$error":"#DIV/0!"}}]
[null,null,null,"Beneficio Ambiental",{"$f":"IFERROR(IF($D$11=\"Uso eficiente de residuos orgánicos\",IF(OR('Línea Base y beneficios pro (2)'!$R$15=\"\",E16=\"\"),\"\",E16-'Línea Base y beneficios pro (2)'!$R$15),IF($D$11=\"Uso eficiente de residuos aprovechables\",IF(OR('Línea Base y beneficios pro (2)'!$R$15=\"\",E16=\"\"),\"\",E16-'Línea Base y beneficios pro (2)'!$R$15),IF(OR('Línea Base y beneficios pro (2)'!$R$15=\"\",E16=\"\"),\"\",'Línea Base y beneficios pro (2)'!$R$15-E16))),\"\")","v":""},{"$f":"IFERROR(IF($D$11=\"Uso eficiente de residuos orgánicos\",IF(OR('Línea Base y beneficios pro (2)'!$R$15=\"\",F16=\"\"),\"\",F16-'Línea Base y beneficios pro (2)'!$R$15),IF($D$11=\"Uso eficiente de residuos aprovechables\",IF(OR('Línea Base y beneficios pro (2)'!$R$15=\"\",F16=\"\"),\"\",F16-'Línea Base y beneficios pro (2)'!$R$15),IF(OR('Línea Base y beneficios pro (2)'!$R$15=\"\",F16=\"\"),\"\",'Línea Base y beneficios pro (2)'!$R$15-F16))),\"\")","v":""},{"$f":"IFERROR(IF($D$11=\"Uso eficiente de residuos orgánicos\",IF(OR('Línea Base y beneficios pro (2)'!$R$15=\"\",G16=\"\"),\"\",G16-'Línea Base y beneficios pro (2)'!$R$15),IF($D$11=\"Uso eficiente de residuos aprovechables\",IF(OR('Línea Base y beneficios pro (2)'!$R$15=\"\",G16=\"\"),\"\",G16-'Línea Base y beneficios pro (2)'!$R$15),IF(OR('Línea Base y beneficios pro (2)'!$R$15=\"\",G16=\"\"),\"\",'Línea Base y beneficios pro (2)'!$R$15-G16))),\"\")","v":""},{"$f":"IFERROR(IF($D$11=\"Uso eficiente de residuos orgánicos\",IF(OR('Línea Base y beneficios pro (2)'!$R$15=\"\",H16=\"\"),\"\",H16-'Línea Base y beneficios pro (2)'!$R$15),IF($D$11=\"Uso eficiente de residuos aprovechables\",IF(OR('Línea Base y beneficios pro (2)'!$R$15=\"\",H16=\"\"),\"\",H16-'Línea Base y beneficios pro (2)'!$R$15),IF(OR('Línea Base y beneficios pro (2)'!$R$15=\"\",H16=\"\"),\"\",'Línea Base y beneficios pro (2)'!$R$15-H16))),\"\")","v":""},{"$f":"IFERROR(IF($D$11=\"Uso eficiente de residuos orgánicos\",IF(OR('Línea Base y beneficios pro (2)'!$R$15=\"\",I16=\"\"),\"\",I16-'Línea Base y beneficios pro (2)'!$R$15),IF($D$11=\"Uso eficiente de residuos aprovechables\",IF(OR('Línea Base y beneficios pro (2)'!$R$15=\"\",I16=\"\"),\"\",I16-'Línea Base y beneficios pro (2)'!$R$15),IF(OR('Línea Base y beneficios pro (2)'!$R$15=\"\",I16=\"\"),\"\",'Línea Base y beneficios pro (2)'!$R$15-I16))),\"\")","v":""},{"$f":"IFERROR(IF($D$11=\"Uso eficiente de residuos orgánicos\",IF(OR('Línea Base y beneficios pro (2)'!$R$15=\"\",J16=\"\"),\"\",J16-'Línea Base y beneficios pro (2)'!$R$15),IF($D$11=\"Uso eficiente de residuos aprovechables\",IF(OR('Línea Base y beneficios pro (2)'!$R$15=\"\",J16=\"\"),\"\",J16-'Línea Base y beneficios pro (2)'!$R$15),IF(OR('Línea Base y beneficios pro (2)'!$R$15=\"\",J16=\"\"),\"\",'Línea Base y beneficios pro (2)'!$R$15-J16))),\"\")","v":""},{"$f":"IFERROR(IF($D$11=\"Uso eficiente de residuos orgánicos\",IF(OR('Línea Base y beneficios pro (2)'!$R$15=\"\",K16=\"\"),\"\",K16-'Línea Base y beneficios pro (2)'!$R$15),IF($D$11=\"Uso eficiente de residuos aprovechables\",IF(OR('Línea Base y beneficios pro (2)'!$R$15=\"\",K16=\"\"),\"\",K16-'Línea Base y beneficios pro (2)'!$R$15),IF(OR('Línea Base y beneficios pro (2)'!$R$15=\"\",K16=\"\"),\"\",'Línea Base y beneficios pro (2)'!$R$15-K16))),\"\")","v":""},{"$f":"IFERROR(IF($D$11=\"Uso eficiente de residuos orgánicos\",IF(OR('Línea Base y beneficios pro (2)'!$R$15=\"\",L16=\"\"),\"\",L16-'Línea Base y beneficios pro (2)'!$R$15),IF($D$11=\"Uso eficiente de residuos aprovechables\",IF(OR('Línea Base y beneficios pro (2)'!$R$15=\"\",L16=\"\"),\"\",L16-'Línea Base y beneficios pro (2)'!$R$15),IF(OR('Línea Base y beneficios pro (2)'!$R$15=\"\",L16=\"\"),\"\",'Línea Base y beneficios pro (2)'!$R$15-L16))),\"\")","v":""},{"$f":"IFERROR(IF($D$11=\"Uso eficiente de residuos orgánicos\",IF(OR('Línea Base y beneficios pro (2)'!$R$15=\"\",M16=\"\"),\"\",M16-'Línea Base y beneficios pro (2)'!$R$15),IF($D$11=\"Uso eficiente de residuos aprovechables\",IF(OR('Línea Base y beneficios pro (2)'!$R$15=\"\",M16=\"\"),\"\",M16-'Línea Base y beneficios pro (2)'!$R$15),IF(OR('Línea Base y beneficios pro (2)'!$R$15=\"\",M16=\"\"),\"\",'Línea Base y beneficios pro (2)'!$R$15-M16))),\"\")","v":""},{"$f":"IFERROR(IF($D$11=\"Uso eficiente de residuos orgánicos\",IF(OR('Línea Base y beneficios pro (2)'!$R$15=\"\",N16=\"\"),\"\",N16-'Línea Base y beneficios pro (2)'!$R$15),IF($D$11=\"Uso eficiente de residuos aprovechables\",IF(OR('Línea Base y beneficios pro (2)'!$R$15=\"\",N16=\"\"),\"\",N16-'Línea Base y beneficios pro (2)'!$R$15),IF(OR('Línea Base y beneficios pro (2)'!$R$15=\"\",N16=\"\"),\"\",'Línea Base y beneficios pro (2)'!$R$15-N16))),\"\")","v":""},{"$f":"IFERROR(IF($D$11=\"Uso eficiente de residuos orgánicos\",IF(OR('Línea Base y beneficios pro (2)'!$R$15=\"\",O16=\"\"),\"\",O16-'Línea Base y beneficios pro (2)'!$R$15),IF($D$11=\"Uso eficiente de residuos aprovechables\",IF(OR('Línea Base y beneficios pro (2)'!$R$15=\"\",O16=\"\"),\"\",O16-'Línea Base y beneficios pro (2)'!$R$15),IF(OR('Línea Base y beneficios pro (2)'!$R$15=\"\",O16=\"\"),\"\",'Línea Base y beneficios pro (2)'!$R$15-O16))),\"\")","v":""},{"$f":"IFERROR(IF($D$11=\"Uso eficiente de residuos orgánicos\",IF(OR('Línea Base y beneficios pro (2)'!$R$15=\"\",P16=\"\"),\"\",P16-'Línea Base y beneficios pro (2)'!$R$15),IF($D$11=\"Uso eficiente de residuos aprovechables\",IF(OR('Línea Base y beneficios pro (2)'!$R$15=\"\",P16=\"\"),\"\",P16-'Línea Base y beneficios pro (2)'!$R$15),IF(OR('Línea Base y beneficios pro (2)'!$R$15=\"\",P16=\"\"),\"\",'Línea Base y beneficios pro (2)'!$R$15-P16))),\"\")","v":""},{"$f":"SUM($E$17:$P$17)","v":0},{"$f":"AVERAGE($E$17:$P$17)","v":{"$error":"#DIV/0!"}}]
[]
[null,null,null,"Meta promedio proyección ambiental",{"$f":"+'Línea Base y beneficios pro (2)'!$R$16","v":{"$error":"#DIV/0!"}},{"$f":"+'Línea Base y beneficios pro (2)'!$R$16","v":{"$error":"#DIV/0!"}},{"$f":"+'Línea Base y beneficios pro (2)'!$R$16","v":{"$error":"#DIV/0!"}},{"$f":"+'Línea Base y beneficios pro (2)'!$R$16","v":{"$error":"#DIV/0!"}},{"$f":"+'Línea Base y beneficios pro (2)'!$R$16","v":{"$error":"#DIV/0!"}},{"$f":"+'Línea Base y beneficios pro (2)'!$R$16","v":{"$error":"#DIV/0!"}},{"$f":"+'Línea Base y beneficios pro (2)'!$R$16","v":{"$error":"#DIV/0!"}},{"$f":"+'Línea Base y beneficios pro (2)'!$R$16","v":{"$error":"#DIV/0!"}},{"$f":"+'Línea Base y beneficios pro (2)'!$R$16","v":{"$error":"#DIV/0!"}},{"$f":"+'Línea Base y beneficios pro (2)'!$R$16","v":{"$error":"#DIV/0!"}},{"$f":"+'Línea Base y beneficios pro (2)'!$R$16","v":{"$error":"#DIV/0!"}},{"$f":"+'Línea Base y beneficios pro (2)'!$R$16","v":{"$error":"#DIV/0!"}}]
[]
[null,null,null,"Resultados concluyentes del proyecto"]
[]
[null,null,null,"% de cumplimiento promedio meta","% de mejoramiento promedio "]
[null,null,null,{"$f":"$R$17*1/$R$15","v":{"$error":"#DIV/0!"}},{"$f":"$R$17*1/'Línea Base y beneficios pro (2)'!$R$15","v":{"$error":"#DIV/0!"}}]
[]
[]
[null,null,null,"Componente económico"]
[]
[null,null,null,"Económico","Mes 1","Mes 2","Mes 3","Mes 4","Mes 5","Mes 6","Mes 7","Mes 8","Mes 9","Mes 10","Mes 11","Mes 12","Total","Promedio"]
[null,null,null,"Meta",{"$f":"'Línea Base y beneficios pro (2)'!$F$28","v":"0"},{"$f":"'Línea Base y beneficios pro (2)'!$F$28","v":"0"},{"$f":"'Línea Base y beneficios pro (2)'!$F$28","v":"0"},{"$f":"'Línea Base y beneficios pro (2)'!$F$28","v":"0"},{"$f":"'Línea Base y beneficios pro (2)'!$F$28","v":"0"},{"$f":"'Línea Base y beneficios pro (2)'!$F$28","v":"0"},{"$f":"'Línea Base y beneficios pro (2)'!$F$28","v":"0"},{"$f":"'Línea Base y beneficios pro (2)'!$F$28","v":"0"},{"$f":"'Línea Base y beneficios pro (2)'!$F$28","v":"0"},{"$f":"'Línea Base y beneficios pro (2)'!$F$28","v":"0"},{"$f":"'Línea Base y beneficios pro (2)'!$F$28","v":"0"},{"$f":"'Línea Base y beneficios pro (2)'!$F$28","v":"0"},{"$f":"SUM($E$30:$P$30)","v":0},{"$f":"AVERAGE($E$30:$P$30)","v":{"$error":"#DIV/0!"}}]
[null,null,null,"Resultado económico",null,null,null,null,null,null,null,null,null,null,null,null,{"$f":"SUM($E$31:$P$31)","v":0},{"$f":"AVERAGE($E$31:$P$31)","v":{"$error":"#DIV/0!"}}]
[null,null,null,"Beneficio económico",{"$f":"IFERROR(IF($D$11=\"Uso eficiente de residuos orgánicos\",IF(OR('Línea Base y beneficios pro (2)'!$R$15=\"\",E31=\"\"),\"\",E31-'Línea Base y beneficios pro (2)'!$R$15),IF($D$11=\"Uso eficiente de residuos aprovechables\",IF(OR('Línea Base y beneficios pro (2)'!$R$15=\"\",E31=\"\"),\"\",E31-'Línea Base y beneficios pro (2)'!$R$15),IF(OR('Línea Base y beneficios pro (2)'!$R$15=\"\",E31=\"\"),\"\",'Línea Base y beneficios pro (2)'!$R$15-E31))),\"\")","v":""},{"$f":"IFERROR(IF($D$11=\"Uso eficiente de residuos orgánicos\",IF(OR('Línea Base y beneficios pro (2)'!$R$15=\"\",F31=\"\"),\"\",F31-'Línea Base y beneficios pro (2)'!$R$15),IF($D$11=\"Uso eficiente de residuos aprovechables\",IF(OR('Línea Base y beneficios pro (2)'!$R$15=\"\",F31=\"\"),\"\",F31-'Línea Base y beneficios pro (2)'!$R$15),IF(OR('Línea Base y beneficios pro (2)'!$R$15=\"\",F31=\"\"),\"\",'Línea Base y beneficios pro (2)'!$R$15-F31))),\"\")","v":""},{"$f":"IFERROR(IF($D$11=\"Uso eficiente de residuos orgánicos\",IF(OR('Línea Base y beneficios pro (2)'!$R$15=\"\",G31=\"\"),\"\",G31-'Línea Base y beneficios pro (2)'!$R$15),IF($D$11=\"Uso eficiente de residuos aprovechables\",IF(OR('Línea Base y beneficios pro (2)'!$R$15=\"\",G31=\"\"),\"\",G31-'Línea Base y beneficios pro (2)'!$R$15),IF(OR('Línea Base y beneficios pro (2)'!$R$15=\"\",G31=\"\"),\"\",'Línea Base y beneficios pro (2)'!$R$15-G31))),\"\")","v":""},{"$f":"IFERROR(IF($D$11=\"Uso eficiente de residuos orgánicos\",IF(OR('Línea Base y beneficios pro (2)'!$R$15=\"\",H31=\"\"),\"\",H31-'Línea Base y beneficios pro (2)'!$R$15),IF($D$11=\"Uso eficiente de residuos aprovechables\",IF(OR('Línea Base y beneficios pro (2)'!$R$15=\"\",H31=\"\"),\"\",H31-'Línea Base y beneficios pro (2)'!$R$15),IF(OR('Línea Base y beneficios pro (2)'!$R$15=\"\",H31=\"\"),\"\",'Línea Base y beneficios pro (2)'!$R$15-H31))),\"\")","v":""},{"$f":"IFERROR(IF($D$11=\"Uso eficiente de residuos orgánicos\",IF(OR('Línea Base y beneficios pro (2)'!$R$15=\"\",I31=\"\"),\"\",I31-'Línea Base y beneficios pro (2)'!$R$15),IF($D$11=\"Uso eficiente de residuos aprovechables\",IF(OR('Línea Base y beneficios pro (2)'!$R$15=\"\",I31=\"\"),\"\",I31-'Línea Base y beneficios pro (2)'!$R$15),IF(OR('Línea Base y beneficios pro (2)'!$R$15=\"\",I31=\"\"),\"\",'Línea Base y beneficios pro (2)'!$R$15-I31))),\"\")","v":""},{"$f":"IFERROR(IF($D$11=\"Uso eficiente de residuos orgánicos\",IF(OR('Línea Base y beneficios pro (2)'!$R$15=\"\",J31=\"\"),\"\",J31-'Línea Base y beneficios pro (2)'!$R$15),IF($D$11=\"Uso eficiente de residuos aprovechables\",IF(OR('Línea Base y beneficios pro (2)'!$R$15=\"\",J31=\"\"),\"\",J31-'Línea Base y beneficios pro (2)'!$R$15),IF(OR('Línea Base y beneficios pro (2)'!$R$15=\"\",J31=\"\"),\"\",'Línea Base y beneficios pro (2)'!$R$15-J31))),\"\")","v":""},{"$f":"IFERROR(IF($D$11=\"Uso eficiente de residuos orgánicos\",IF(OR('Línea Base y beneficios pro (2)'!$R$15=\"\",K31=\"\"),\"\",K31-'Línea Base y beneficios pro (2)'!$R$15),IF($D$11=\"Uso eficiente de residuos aprovechables\",IF(OR('Línea Base y beneficios pro (2)'!$R$15=\"\",K31=\"\"),\"\",K31-'Línea Base y beneficios pro (2)'!$R$15),IF(OR('Línea Base y beneficios pro (2)'!$R$15=\"\",K31=\"\"),\"\",'Línea Base y beneficios pro (2)'!$R$15-K31))),\"\")","v":""},{"$f":"IFERROR(IF($D$11=\"Uso eficiente de residuos orgánicos\",IF(OR('Línea Base y beneficios pro (2)'!$R$15=\"\",L31=\"\"),\"\",L31-'Línea Base y beneficios pro (2)'!$R$15),IF($D$11=\"Uso eficiente de residuos aprovechables\",IF(OR('Línea Base y beneficios pro (2)'!$R$15=\"\",L31=\"\"),\"\",L31-'Línea Base y beneficios pro (2)'!$R$15),IF(OR('Línea Base y beneficios pro (2)'!$R$15=\"\",L31=\"\"),\"\",'Línea Base y beneficios pro (2)'!$R$15-L31))),\"\")","v":""},{"$f":"IFERROR(IF($D$11=\"Uso eficiente de residuos orgánicos\",IF(OR('Línea Base y beneficios pro (2)'!$R$15=\"\",M31=\"\"),\"\",M31-'Línea Base y beneficios pro (2)'!$R$15),IF($D$11=\"Uso eficiente de residuos aprovechables\",IF(OR('Línea Base y beneficios pro (2)'!$R$15=\"\",M31=\"\"),\"\",M31-'Línea Base y beneficios pro (2)'!$R$15),IF(OR('Línea Base y beneficios pro (2)'!$R$15=\"\",M31=\"\"),\"\",'Línea Base y beneficios pro (2)'!$R$15-M31))),\"\")","v":""},{"$f":"IFERROR(IF($D$11=\"Uso eficiente de residuos orgánicos\",IF(OR('Línea Base y beneficios pro (2)'!$R$15=\"\",N31=\"\"),\"\",N31-'Línea Base y beneficios pro (2)'!$R$15),IF($D$11=\"Uso eficiente de residuos aprovechables\",IF(OR('Línea Base y beneficios pro (2)'!$R$15=\"\",N31=\"\"),\"\",N31-'Línea Base y beneficios pro (2)'!$R$15),IF(OR('Línea Base y beneficios pro (2)'!$R$15=\"\",N31=\"\"),\"\",'Línea Base y beneficios pro (2)'!$R$15-N31))),\"\")","v":""},{"$f":"IFERROR(IF($D$11=\"Uso eficiente de residuos orgánicos\",IF(OR('Línea Base y beneficios pro (2)'!$R$15=\"\",O31=\"\"),\"\",O31-'Línea Base y beneficios pro (2)'!$R$15),IF($D$11=\"Uso eficiente de residuos aprovechables\",IF(OR('Línea Base y beneficios pro (2)'!$R$15=\"\",O31=\"\"),\"\",O31-'Línea Base y beneficios pro (2)'!$R$15),IF(OR('Línea Base y beneficios pro (2)'!$R$15=\"\",O31=\"\"),\"\",'Línea Base y beneficios pro (2)'!$R$15-O31))),\"\")","v":""},{"$f":"IFERROR(IF($D$11=\"Uso eficiente de residuos orgánicos\",IF(OR('Línea Base y beneficios pro (2)'!$R$15=\"\",P31=\"\"),\"\",P31-'Línea Base y beneficios pro (2)'!$R$15),IF($D$11=\"Uso eficiente de residuos aprovechables\",IF(OR('Línea Base y beneficios pro (2)'!$R$15=\"\",P31=\"\"),\"\",P31-'Línea Base y beneficios pro (2)'!$R$15),IF(OR('Línea Base y beneficios pro (2)'!$R$15=\"\",P31=\"\"),\"\",'Línea Base y beneficios pro (2)'!$R$15-P31))),\"\")","v":""},{"$f":"SUM($E$31:$P$31)","v":0},{"$f":"AVERAGE($E$31:$P$31)","v":{"$error":"#DIV/0!"}}]
[]
[]
[]
[]
[]
[]
[]
[]
[]
[]
[]
[]
[null,null,null,"Componente Ambiental",null,null,null,null,null,null,null,"Componente Económico"]
[]
[null,null,null,"Componente ambiental, la línea base inicial indicaba un consumo promedio mensual de XXXXX. Tras implementar las medidas propuestas, se alcanzó una reducción real de XXXX mensuales en promedio, representando un % de disminución respecto a la línea base. ",null,null,null,null,null,null,null,"Componente económico, se proyectó un ahorro de $XXX en costos asociados al consumo o generación de XXXX. Al cierre, los beneficios obtenidos alcanzaron los $xxx, esto representa un cumplimiento del xx% respecto a las expectativas económicas del período."]
[]
[]
[]
[]
[]
[]
[null,null,null,"EVIDENCIAS DE IMPLEMENTACIÓN"]
[]
[]
[null,null,null,"Cálculos y resultados obtenidos"]
[]
[]
[]
[]
[]
[]
[]
[]
[]
[]
[]
[]
[]
[]
[null,null,null,"Fotografías y evidencias de implementación"]
[]
[]
[]
[]
[]
[]
[]
[]
[]
[]
[]
[]
[]
[]
[]
[]
[]
[]
[]
[]
[]
[]
[]
[]
[]
[]
[]
[]
[]
[]
[]
[]
[null,null,null,null,null,null,null,null,null,null,null,null,null,null,null,null,null,null,null,null,null,null,"OBSERVACIONES TUTOR "]

{"sheet":"Línea Base y beneficios pro (3)","index":8,"n_rows":81,"n_cols":20,"rows_kept":81,"cut":false,"hidden":false,"merged":[[4,2,4,19],[8,3,8,7],[8,8,8,9],[8,11,8,14],[12,21,12,22],[1,2,1,4],[1,5,1,14],[1,15,1,19],[2,2,2,18],[3,3,3,17],[37,2,37,18],[80,2,80,18],[9,3,9,7],[9,8,9,9],[9,11,9,13],[31,2,31,18],[36,4,36,16]]}
[null,null,null,null,null,null,null,null,null,null,null,null,null,null,null,null,null,null,null,"VERSIÓN 2.0"]
["MENÚ",null,null,null,null,"FORMATO PARA LA PRESENTACIÓN DE \nPROYECTOS AMBIENTALES AÑO 2026"]
[]
[null,null,null,"Nota: La hoja se encuentra protegida en algunas celdas. Por favor, registre manualmente los datos de su organización en los campos de color verde claro."]
[null,null,"7. LINEA BASE Y BENEFICIOS COMPLEMENTARIOS 2"]
[]
[]
[]
[null,null,null,"Componente ambiental",null,null,null,null,"Unidad",null,null,"Mes de inicio de la línea base"]
[]
[]
[]
[]
[null,null,null,"Línea Base","Mes 1","Mes 2","Mes 3","Mes 4","Mes 5","Mes 6","Mes 7","Mes 8","Mes 9","Mes 10","Mes 11","Mes 12","Total","Promedio mes","Mín.","Máx."]
[null,null,null,"Consumo o generación",null,null,null,null,null,null,null,null,null,null,null,null,{"$f":"SUM(TablaLineaBase2123[[#This Row],[Mes 1]:[Mes 12]])","v":0},{"$f":"AVERAGE(TablaLineaBase2123[[#This Row],[Mes 1]:[Mes 12]])","v":{"$error":"#DIV/0!"}},{"$f":"MIN(TablaLineaBase2123[[#This Row],[Mes 1]:[Mes 12]])","v":0},{"$f":"MAX(TablaLineaBase2123[[#This Row],[Mes 1]:[Mes 12]])","v":0}]
[null,null,null,"Consumo o generación proyectado",{"$f":"IFERROR(IF($D$10=\"Uso eficiente de residuos orgánicos\",IF(E15+$F$27<=$F$27,\"\",E15+$F$27),IF($D$10=\"Uso eficiente de residuos aprovechables\",IF(E15+$F$27<=$F$27,\"\",E15+$F$27),IF(E15-$F$27<0,\"\",E15-$F$27))),\"\")","v":""},{"$f":"IFERROR(IF($D$10=\"Uso eficiente de residuos orgánicos\",IF(F15+$F$27<=$F$27,\"\",F15+$F$27),IF($D$10=\"Uso eficiente de residuos aprovechables\",IF(F15+$F$27<=$F$27,\"\",F15+$F$27),IF(F15-$F$27<0,\"\",F15-$F$27))),\"\")","v":""},"","","","","","","","","","",{"$f":"SUM(TablaLineaBase2123[[#This Row],[Mes 1]:[Mes 12]])","v":0},{"$f":"AVERAGE(TablaLineaBase2123[[#This Row],[Mes 1]:[Mes 12]])","v":{"$error":"#DIV/0!"}},{"$f":"MIN(TablaLineaBase2123[[#This Row],[Mes 1]:[Mes 12]])","v":0},{"$f":"MAX(TablaLineaBase2123[[#This Row],[Mes 1]:[Mes 12]])","v":0}]
[null,null,null,"Costo ",null,null,null,null,null,null,null,null,null,null,null,null,{"$f":"SUM(TablaLineaBase2123[[#This Row],[Mes 1]:[Mes 12]])","v":0},{"$f":"AVERAGE(TablaLineaBase2123[[#This Row],[Mes 1]:[Mes 12]])","v":{"$error":"#DIV/0!"}},{"$f":"MIN(TablaLineaBase2123[[#This Row],[Mes 1]:[Mes 12]])","v":0},{"$f":"MAX(TablaLineaBase2123[[#This Row],[Mes 1]:[Mes 12]])","v":0}]
[null,null,null,"Promedio consumo o generación",{"$f":"+$R$15","v":{"$error":"#DIV/0!"}},{"$f":"+$R$15","v":{"$error":"#DIV/0!"}},{"$error":"#DIV/0!"},{"$error":"#DIV/0!"},{"$error":"#DIV/0!"},{"$error":"#DIV/0!"},{"$error":"#DIV/0!"},{"$error":"#DIV/0!"},{"$error":"#DIV/0!"},{"$error":"#DIV/0!"},{"$error":"#DIV/0!"},{"$error":"#DIV/0!"}]
[null,null,null,"Promedio proyección beneficio ambiental",{"$f":"+$R$16","v":{"$error":"#DIV/0!"}},{"$f":"+$R$16","v":{"$error":"#DIV/0!"}},{"$error":"#DIV/0!"},{"$error":"#DIV/0!"},{"$error":"#DIV/0!"},{"$error":"#DIV/0!"},{"$error":"#DIV/0!"},{"$error":"#DIV/0!"},{"$error":"#DIV/0!"},{"$error":"#DIV/0!"},{"$error":"#DIV/0!"},{"$error":"#DIV/0!"}]
[null,null,null,"Máximo",{"$f":"$T$15","v":0},{"$f":"$T$15","v":0},0,0,0,0,0,0,0,0,0,0]
[null,null,null,"Mínimo",{"$f":"$S$15","v":0},{"$f":"$S$15","v":0},0,0,0,0,0,0,0,0,0,0]
[]
[]
[]
[]
[null,null,null,"Beneficio proyectado","% Beneficio proyectado","Mensual proyectado","No de meses proyectados","Beneficio total"]
[null,null,null,"Ambiental (Consumo o generación)",null,{"$f":"IFERROR(TablaBeneProyectado2224[[#This Row],[% Beneficio proyectado]]*$R$15,\"\")","v":""},null,{"$f":"IFERROR(TablaBeneProyectado2224[[#This Row],[Mensual proyectado]]*TablaBeneProyectado2224[[#This Row],[No de meses proyectados]],\"\")","v":""}]
[null,null,null,"Económico",null,{"$f":"IFERROR(TablaBeneProyectado2224[[#This Row],[% Beneficio proyectado]]*$R$17,\"0\")","v":"0"},null,{"$f":"IFERROR(TablaBeneProyectado2224[[#This Row],[Mensual proyectado]]*TablaBeneProyectado2224[[#This Row],[No de meses proyectados]],\"\")","v":0}]
[]
[]
[]
[null,null,"CÁLCULOS COMPLEMENTARIOS PARA ESTIMAR LA LÍNEA BASE Y LOS BENEFICIOS PROYECTADOS"]
[]
[]
[]
[]
[]
[null,null,"Evidencias estimación línea base"]
[]
[]
[]
[]
[]
[]
[]
[]
[]
[]
[]
[]
[]
[]
[]
[]
[]
[]
[]
[]
[]
[]
[]
[]
[]
[]
[]
[]
[]
[]
[]
[]
[]
[]
[]
[]
[]
[]
[]
[]
[]
[]
[null,null,"Cálculos / justificación beneficios ambientales y económicos proyectados"]

{"sheet":"Resultados del proyecto  (3)","index":9,"n_rows":74,"n_cols":22,"rows_kept":74,"cut":false,"hidden":false,"merged":[[4,3,4,14],[10,3,10,6],[12,10,12,15],[20,3,20,6],[10,10,10,12],[17,7,17,15],[9,3,9,6],[9,7,9,8],[9,10,9,12],[10,7,10,8],[8,3,8,6],[8,7,8,8],[1,2,1,5],[1,6,1,13],[1,14,1,18],[2,2,2,14],[3,2,3,18],[20,1,21,2],[20,8,21,12],[27,3,27,6],[41,3,41,9],[73,3,73,18],[46,3,46,9],[46,11,46,18],[48,3,48,9],[84,5,84,6],[48,11,48,18],[53,3,53,4],[54,3,54,4],[55,3,55,18],[58,3,58,18]]}
[null,null,null,null,null,null,null,null,null,null,null,null,null,null,null,null,null,"VERSIÓN 3.0"]
["MENÚ",null,null,null,null,null,"FORMATO PARA LA PRESENTACIÓN DE \nPROYECTOS AMBIENTALES AÑO 2026"]
[]
[null,null,"8. RESULTADOS COMPLEMENTARIOS 2"]
[null,null,null,"Nota: La hoja se encuentra protegida en algunas celdas. Por favor, registre manualmente los datos de su organización en los campos de color verde claro."]
[]
[]
[null,null,null,null,null,null,null,{"$f":"+'Línea Base y beneficios proy'!$I$10","v":0}]
[]
[null,null,null,"Componente ambiental",null,null,null,"Unidad",null,null,"Mes de inicio de resultados"]
[null,null,null,{"$f":"+'Línea Base y beneficios pro (3)'!$D$10:$H$10","v":0},null,null,null,{"$f":"+'Línea Base y beneficios pro (3)'!$I$10","v":0}]
[]
[]
[null,null,null,"Ambiental","Mes 1","Mes 2","Mes 3","Mes 4","Mes 5","Mes 6","Mes 7","Mes 8","Mes 9","Mes 10","Mes 11","Mes 12","Total","Promedio"]
[null,null,null,"Meta",{"$f":"'Línea Base y beneficios pro (3)'!$F$27","v":""},{"$f":"'Línea Base y beneficios pro (3)'!$F$27","v":""},{"$f":"'Línea Base y beneficios pro (3)'!$F$27","v":""},{"$f":"'Línea Base y beneficios pro (3)'!$F$27","v":""},{"$f":"'Línea Base y beneficios pro (3)'!$F$27","v":""},{"$f":"'Línea Base y beneficios pro (3)'!$F$27","v":""},{"$f":"'Línea Base y beneficios pro (3)'!$F$27","v":""},{"$f":"'Línea Base y beneficios pro (3)'!$F$27","v":""},{"$f":"'Línea Base y beneficios pro (3)'!$F$27","v":""},{"$f":"'Línea Base y beneficios pro (3)'!$F$27","v":""},{"$f":"'Línea Base y beneficios pro (3)'!$F$27","v":""},{"$f":"'Línea Base y beneficios pro (3)'!$F$27","v":""},{"$f":"SUM(Tabla102932[[#This Row],[Mes 1]:[Mes 12]])","v":0},{"$f":"AVERAGE(Tabla102932[[#This Row],[Mes 1]:[Mes 12]])","v":{"$error":"#DIV/0!"}}]
[null,null,null,"Resultado consumo o generación",null,null,null,null,null,null,null,null,null,null,null,null,{"$f":"SUM(Tabla102932[[#This Row],[Mes 1]:[Mes 12]])","v":0},{"$f":"AVERAGE(Tabla102932[[#This Row],[Mes 1]:[Mes 12]])","v":{"$error":"#DIV/0!"}}]
[null,null,null,"Beneficio Ambiental",{"$f":"IFERROR(IF($D$11=\"Uso eficiente de residuos orgánicos\",IF(OR('Línea Base y beneficios pro (3)'!$R$15=\"\",E16=\"\"),\"\",E16-'Línea Base y beneficios pro (3)'!$R$15),IF($D$11=\"Uso eficiente de residuos aprovechables\",IF(OR('Línea Base y beneficios pro (3)'!$R$15=\"\",E16=\"\"),\"\",E16-'Línea Base y beneficios pro (3)'!$R$15),IF(OR('Línea Base y beneficios pro (3)'!$R$15=\"\",E16=\"\"),\"\",'Línea Base y beneficios pro (3)'!$R$15-E16))),\"\")","v":""},{"$f":"IFERROR(IF($D$11=\"Uso eficiente de residuos orgánicos\",IF(OR('Línea Base y beneficios pro (3)'!$R$15=\"\",F16=\"\"),\"\",F16-'Línea Base y beneficios pro (3)'!$R$15),IF($D$11=\"Uso eficiente de residuos aprovechables\",IF(OR('Línea Base y beneficios pro (3)'!$R$15=\"\",F16=\"\"),\"\",F16-'Línea Base y beneficios pro (3)'!$R$15),IF(OR('Línea Base y beneficios pro (3)'!$R$15=\"\",F16=\"\"),\"\",'Línea Base y beneficios pro (3)'!$R$15-F16))),\"\")","v":""},{"$f":"IFERROR(IF($D$11=\"Uso eficiente de residuos orgánicos\",IF(OR('Línea Base y beneficios pro (3)'!$R$15=\"\",G16=\"\"),\"\",G16-'Línea Base y beneficios pro (3)'!$R$15),IF($D$11=\"Uso eficiente de residuos aprovechables\",IF(OR('Línea Base y beneficios pro (3)'!$R$15=\"\",G16=\"\"),\"\",G16-'Línea Base y beneficios pro (3)'!$R$15),IF(OR('Línea Base y beneficios pro (3)'!$R$15=\"\",G16=\"\"),\"\",'Línea Base y beneficios pro (3)'!$R$15-G16))),\"\")","v":""},{"$f":"IFERROR(IF($D$11=\"Uso eficiente de residuos orgánicos\",IF(OR('Línea Base y beneficios pro (3)'!$R$15=\"\",H16=\"\"),\"\",H16-'Línea Base y beneficios pro (3)'!$R$15),IF($D$11=\"Uso eficiente de residuos aprovechables\",IF(OR('Línea Base y beneficios pro (3)'!$R$15=\"\",H16=\"\"),\"\",H16-'Línea Base y beneficios pro (3)'!$R$15),IF(OR('Línea Base y beneficios pro (3)'!$R$15=\"\",H16=\"\"),\"\",'Línea Base y beneficios pro (3)'!$R$15-H16))),\"\")","v":""},{"$f":"IFERROR(IF($D$11=\"Uso eficiente de residuos orgánicos\",IF(OR('Línea Base y beneficios pro (3)'!$R$15=\"\",I16=\"\"),\"\",I16-'Línea Base y beneficios pro (3)'!$R$15),IF($D$11=\"Uso eficiente de residuos aprovechables\",IF(OR('Línea Base y beneficios pro (3)'!$R$15=\"\",I16=\"\"),\"\",I16-'Línea Base y beneficios pro (3)'!$R$15),IF(OR('Línea Base y beneficios pro (3)'!$R$15=\"\",I16=\"\"),\"\",'Línea Base y beneficios pro (3)'!$R$15-I16))),\"\")","v":""},{"$f":"IFERROR(IF($D$11=\"Uso eficiente de residuos orgánicos\",IF(OR('Línea Base y beneficios pro (3)'!$R$15=\"\",J16=\"\"),\"\",J16-'Línea Base y beneficios pro (3)'!$R$15),IF($D$11=\"Uso eficiente de residuos aprovechables\",IF(OR('Línea Base y beneficios pro (3)'!$R$15=\"\",J16=\"\"),\"\",J16-'Línea Base y beneficios pro (3)'!$R$15),IF(OR('Línea Base y beneficios pro (3)'!$R$15=\"\",J16=\"\"),\"\",'Línea Base y beneficios pro (3)'!$R$15-J16))),\"\")","v":""},{"$f":"IFERROR(IF($D$11=\"Uso eficiente de residuos orgánicos\",IF(OR('Línea Base y beneficios pro (3)'!$R$15=\"\",K16=\"\"),\"\",K16-'Línea Base y beneficios pro (3)'!$R$15),IF($D$11=\"Uso eficiente de residuos aprovechables\",IF(OR('Línea Base y beneficios pro (3)'!$R$15=\"\",K16=\"\"),\"\",K16-'Línea Base y beneficios pro (3)'!$R$15),IF(OR('Línea Base y beneficios pro (3)'!$R$15=\"\",K16=\"\"),\"\",'Línea Base y beneficios pro (3)'!$R$15-K16))),\"\")","v":""},{"$f":"IFERROR(IF($D$11=\"Uso eficiente de residuos orgánicos\",IF(OR('Línea Base y beneficios pro (3)'!$R$15=\"\",L16=\"\"),\"\",L16-'Línea Base y beneficios pro (3)'!$R$15),IF($D$11=\"Uso eficiente de residuos aprovechables\",IF(OR('Línea Base y beneficios pro (3)'!$R$15=\"\",L16=\"\"),\"\",L16-'Línea Base y beneficios pro (3)'!$R$15),IF(OR('Línea Base y beneficios pro (3)'!$R$15=\"\",L16=\"\"),\"\",'Línea Base y beneficios pro (3)'!$R$15-L16))),\"\")","v":""},{"$f":"IFERROR(IF($D$11=\"Uso eficiente de residuos orgánicos\",IF(OR('Línea Base y beneficios pro (3)'!$R$15=\"\",M16=\"\"),\"\",M16-'Línea Base y beneficios pro (3)'!$R$15),IF($D$11=\"Uso eficiente de residuos aprovechables\",IF(OR('Línea Base y beneficios pro (3)'!$R$15=\"\",M16=\"\"),\"\",M16-'Línea Base y beneficios pro (3)'!$R$15),IF(OR('Línea Base y beneficios pro (3)'!$R$15=\"\",M16=\"\"),\"\",'Línea Base y beneficios pro (3)'!$R$15-M16))),\"\")","v":""},{"$f":"IFERROR(IF($D$11=\"Uso eficiente de residuos orgánicos\",IF(OR('Línea Base y beneficios pro (3)'!$R$15=\"\",N16=\"\"),\"\",N16-'Línea Base y beneficios pro (3)'!$R$15),IF($D$11=\"Uso eficiente de residuos aprovechables\",IF(OR('Línea Base y beneficios pro (3)'!$R$15=\"\",N16=\"\"),\"\",N16-'Línea Base y beneficios pro (3)'!$R$15),IF(OR('Línea Base y beneficios pro (3)'!$R$15=\"\",N16=\"\"),\"\",'Línea Base y beneficios pro (3)'!$R$15-N16))),\"\")","v":""},{"$f":"IFERROR(IF($D$11=\"Uso eficiente de residuos orgánicos\",IF(OR('Línea Base y beneficios pro (3)'!$R$15=\"\",O16=\"\"),\"\",O16-'Línea Base y beneficios pro (3)'!$R$15),IF($D$11=\"Uso eficiente de residuos aprovechables\",IF(OR('Línea Base y beneficios pro (3)'!$R$15=\"\",O16=\"\"),\"\",O16-'Línea Base y beneficios pro (3)'!$R$15),IF(OR('Línea Base y beneficios pro (3)'!$R$15=\"\",O16=\"\"),\"\",'Línea Base y beneficios pro (3)'!$R$15-O16))),\"\")","v":""},{"$f":"IFERROR(IF($D$11=\"Uso eficiente de residuos orgánicos\",IF(OR('Línea Base y beneficios pro (3)'!$R$15=\"\",P16=\"\"),\"\",P16-'Línea Base y beneficios pro (3)'!$R$15),IF($D$11=\"Uso eficiente de residuos aprovechables\",IF(OR('Línea Base y beneficios pro (3)'!$R$15=\"\",P16=\"\"),\"\",P16-'Línea Base y beneficios pro (3)'!$R$15),IF(OR('Línea Base y beneficios pro (3)'!$R$15=\"\",P16=\"\"),\"\",'Línea Base y beneficios pro (3)'!$R$15-P16))),\"\")","v":""},{"$f":"SUM(Tabla102932[[#This Row],[Mes 1]:[Mes 12]])","v":0},{"$f":"AVERAGE(Tabla102932[[#This Row],[Mes 1]:[Mes 12]])","v":{"$error":"#DIV/0!"}}]
[]
[null,null,null,"Meta promedio proyección ambiental",{"$f":"+'Línea Base y beneficios pro (3)'!$R$16","v":{"$error":"#DIV/0!"}},{"$f":"+'Línea Base y beneficios pro (3)'!$R$16","v":{"$error":"#DIV/0!"}},{"$f":"+'Línea Base y beneficios pro (3)'!$R$16","v":{"$error":"#DIV/0!"}},{"$f":"+'Línea Base y beneficios pro (3)'!$R$16","v":{"$error":"#DIV/0!"}},{"$f":"+'Línea Base y beneficios pro (3)'!$R$16","v":{"$error":"#DIV/0!"}},{"$f":"+'Línea Base y beneficios pro (3)'!$R$16","v":{"$error":"#DIV/0!"}},{"$f":"+'Línea Base y beneficios pro (3)'!$R$16","v":{"$error":"#DIV/0!"}},{"$f":"+'Línea Base y beneficios pro (3)'!$R$16","v":{"$error":"#DIV/0!"}},{"$f":"+'Línea Base y beneficios pro (3)'!$R$16","v":{"$error":"#DIV/0!"}},{"$f":"+'Línea Base y beneficios pro (3)'!$R$16","v":{"$error":"#DIV/0!"}},{"$f":"+'Línea Base y beneficios pro (3)'!$R$16","v":{"$error":"#DIV/0!"}},{"$f":"+'Línea Base y beneficios pro (3)'!$R$16","v":{"$error":"#DIV/0!"}}]
[]
[null,null,null,"Resultados concluyentes del proyecto"]
[]
[null,null,null,"% de cumplimiento promedio meta","% de mejoramiento promedio "]
[null,null,null,{"$f":"$R$17*1/$R$15","v":{"$error":"#DIV/0!"}},{"$f":"$R$17*1/'Línea Base y beneficios pro (3)'!$R$15","v":{"$error":"#DIV/0!"}}]
[]
[]
[]
[null,null,null,"Componente económico"]
[]
[null,null,null,"Económico","Mes 1","Mes 2","Mes 3","Mes 4","Mes 5","Mes 6","Mes 7","Mes 8","Mes 9","Mes 10","Mes 11","Mes 12","Total","Promedio"]
[null,null,null,"Meta",{"$f":"'Línea Base y beneficios pro (3)'!$F$28","v":"0"},{"$f":"'Línea Base y beneficios pro (3)'!$F$28","v":"0"},{"$f":"'Línea Base y beneficios pro (3)'!$F$28","v":"0"},{"$f":"'Línea Base y beneficios pro (3)'!$F$28","v":"0"},{"$f":"'Línea Base y beneficios pro (3)'!$F$28","v":"0"},{"$f":"'Línea Base y beneficios pro (3)'!$F$28","v":"0"},{"$f":"'Línea Base y beneficios pro (3)'!$F$28","v":"0"},{"$f":"'Línea Base y beneficios pro (3)'!$F$28","v":"0"},{"$f":"'Línea Base y beneficios pro (3)'!$F$28","v":"0"},{"$f":"'Línea Base y beneficios pro (3)'!$F$28","v":"0"},{"$f":"'Línea Base y beneficios pro (3)'!$F$28","v":"0"},{"$f":"'Línea Base y beneficios pro (3)'!$F$28","v":"0"},{"$f":"SUM(Tabla4796132831[[#This Row],[Mes 1]:[Mes 12]])","v":0},{"$f":"AVERAGE(Tabla4796132831[[#This Row],[Mes 1]:[Mes 12]])","v":{"$error":"#DIV/0!"}}]
[null,null,null,"Resultado económico",null,null,null,null,null,null,null,null,null,null,null,null,{"$f":"SUM(Tabla4796132831[[#This Row],[Mes 1]:[Mes 12]])","v":0},{"$f":"AVERAGE(Tabla4796132831[[#This Row],[Mes 1]:[Mes 12]])","v":{"$error":"#DIV/0!"}}]
[null,null,null,"Beneficio económico",{"$f":"IFERROR(IF($D$11=\"Uso eficiente de residuos orgánicos\",IF(OR('Línea Base y beneficios pro (3)'!$R$15=\"\",E32=\"\"),\"\",E32-'Línea Base y beneficios pro (3)'!$R$15),IF($D$11=\"Uso eficiente de residuos aprovechables\",IF(OR('Línea Base y beneficios pro (3)'!$R$15=\"\",E32=\"\"),\"\",E32-'Línea Base y beneficios pro (3)'!$R$15),IF(OR('Línea Base y beneficios pro (3)'!$R$15=\"\",E32=\"\"),\"\",'Línea Base y beneficios pro (3)'!$R$15-E32))),\"\")","v":""},{"$f":"IFERROR(IF($D$11=\"Uso eficiente de residuos orgánicos\",IF(OR('Línea Base y beneficios pro (3)'!$R$15=\"\",F32=\"\"),\"\",F32-'Línea Base y beneficios pro (3)'!$R$15),IF($D$11=\"Uso eficiente de residuos aprovechables\",IF(OR('Línea Base y beneficios pro (3)'!$R$15=\"\",F32=\"\"),\"\",F32-'Línea Base y beneficios pro (3)'!$R$15),IF(OR('Línea Base y beneficios pro (3)'!$R$15=\"\",F32=\"\"),\"\",'Línea Base y beneficios pro (3)'!$R$15-F32))),\"\")","v":""},{"$f":"IFERROR(IF($D$11=\"Uso eficiente de residuos orgánicos\",IF(OR('Línea Base y beneficios pro (3)'!$R$15=\"\",G32=\"\"),\"\",G32-'Línea Base y beneficios pro (3)'!$R$15),IF($D$11=\"Uso eficiente de residuos aprovechables\",IF(OR('Línea Base y beneficios pro (3)'!$R$15=\"\",G32=\"\"),\"\",G32-'Línea Base y beneficios pro (3)'!$R$15),IF(OR('Línea Base y beneficios pro (3)'!$R$15=\"\",G32=\"\"),\"\",'Línea Base y beneficios pro (3)'!$R$15-G32))),\"\")","v":""},{"$f":"IFERROR(IF($D$11=\"Uso eficiente de residuos orgánicos\",IF(OR('Línea Base y beneficios pro (3)'!$R$15=\"\",H32=\"\"),\"\",H32-'Línea Base y beneficios pro (3)'!$R$15),IF($D$11=\"Uso eficiente de residuos aprovechables\",IF(OR('Línea Base y beneficios pro (3)'!$R$15=\"\",H32=\"\"),\"\",H32-'Línea Base y beneficios pro (3)'!$R$15),IF(OR('Línea Base y beneficios pro (3)'!$R$15=\"\",H32=\"\"),\"\",'Línea Base y beneficios pro (3)'!$R$15-H32))),\"\")","v":""},{"$f":"IFERROR(IF($D$11=\"Uso eficiente de residuos orgánicos\",IF(OR('Línea Base y beneficios pro (3)'!$R$15=\"\",I32=\"\"),\"\",I32-'Línea Base y beneficios pro (3)'!$R$15),IF($D$11=\"Uso eficiente de residuos aprovechables\",IF(OR('Línea Base y beneficios pro (3)'!$R$15=\"\",I32=\"\"),\"\",I32-'Línea Base y beneficios pro (3)'!$R$15),IF(OR('Línea Base y beneficios pro (3)'!$R$15=\"\",I32=\"\"),\"\",'Línea Base y beneficios pro (3)'!$R$15-I32))),\"\")","v":""},{"$f":"IFERROR(IF($D$11=\"Uso eficiente de residuos orgánicos\",IF(OR('Línea Base y beneficios pro (3)'!$R$15=\"\",J32=\"\"),\"\",J32-'Línea Base y beneficios pro (3)'!$R$15),IF($D$11=\"Uso eficiente de residuos aprovechables\",IF(OR('Línea Base y beneficios pro (3)'!$R$15=\"\",J32=\"\"),\"\",J32-'Línea Base y beneficios pro (3)'!$R$15),IF(OR('Línea Base y beneficios pro (3)'!$R$15=\"\",J32=\"\"),\"\",'Línea Base y beneficios pro (3)'!$R$15-J32))),\"\")","v":""},{"$f":"IFERROR(IF($D$11=\"Uso eficiente de residuos orgánicos\",IF(OR('Línea Base y beneficios pro (3)'!$R$15=\"\",K32=\"\"),\"\",K32-'Línea Base y beneficios pro (3)'!$R$15),IF($D$11=\"Uso eficiente de residuos aprovechables\",IF(OR('Línea Base y beneficios pro (3)'!$R$15=\"\",K32=\"\"),\"\",K32-'Línea Base y beneficios pro (3)'!$R$15),IF(OR('Línea Base y beneficios pro (3)'!$R$15=\"\",K32=\"\"),\"\",'Línea Base y beneficios pro (3)'!$R$15-K32))),\"\")","v":""},{"$f":"IFERROR(IF($D$11=\"Uso eficiente de residuos orgánicos\",IF(OR('Línea Base y beneficios pro (3)'!$R$15=\"\",L32=\"\"),\"\",L32-'Línea Base y beneficios pro (3)'!$R$15),IF($D$11=\"Uso eficiente de residuos aprovechables\",IF(OR('Línea Base y beneficios pro (3)'!$R$15=\"\",L32=\"\"),\"\",L32-'Línea Base y beneficios pro (3)'!$R$15),IF(OR('Línea Base y beneficios pro (3)'!$R$15=\"\",L32=\"\"),\"\",'Línea Base y beneficios pro (3)'!$R$15-L32))),\"\")","v":""},{"$f":"IFERROR(IF($D$11=\"Uso eficiente de residuos orgánicos\",IF(OR('Línea Base y beneficios pro (3)'!$R$15=\"\",M32=\"\"),\"\",M32-'Línea Base y beneficios pro (3)'!$R$15),IF($D$11=\"Uso eficiente de residuos aprovechables\",IF(OR('Línea Base y beneficios pro (3)'!$R$15=\"\",M32=\"\"),\"\",M32-'Línea Base y beneficios pro (3)'!$R$15),IF(OR('Línea Base y beneficios pro (3)'!$R$15=\"\",M32=\"\"),\"\",'Línea Base y beneficios pro (3)'!$R$15-M32))),\"\")","v":""},{"$f":"IFERROR(IF($D$11=\"Uso eficiente de residuos orgánicos\",IF(OR('Línea Base y beneficios pro (3)'!$R$15=\"\",N32=\"\"),\"\",N32-'Línea Base y beneficios pro (3)'!$R$15),IF($D$11=\"Uso eficiente de residuos aprovechables\",IF(OR('Línea Base y beneficios pro (3)'!$R$15=\"\",N32=\"\"),\"\",N32-'Línea Base y beneficios pro (3)'!$R$15),IF(OR('Línea Base y beneficios pro (3)'!$R$15=\"\",N32=\"\"),\"\",'Línea Base y beneficios pro (3)'!$R$15-N32))),\"\")","v":""},{"$f":"IFERROR(IF($D$11=\"Uso eficiente de residuos orgánicos\",IF(OR('Línea Base y beneficios pro (3)'!$R$15=\"\",O32=\"\"),\"\",O32-'Línea Base y beneficios pro (3)'!$R$15),IF($D$11=\"Uso eficiente de residuos aprovechables\",IF(OR('Línea Base y beneficios pro (3)'!$R$15=\"\",O32=\"\"),\"\",O32-'Línea Base y beneficios pro (3)'!$R$15),IF(OR('Línea Base y beneficios pro (3)'!$R$15=\"\",O32=\"\"),\"\",'Línea Base y beneficios pro (3)'!$R$15-O32))),\"\")","v":""},{"$f":"IFERROR(IF($D$11=\"Uso eficiente de residuos orgánicos\",IF(OR('Línea Base y beneficios pro (3)'!$R$15=\"\",P32=\"\"),\"\",P32-'Línea Base y beneficios pro (3)'!$R$15),IF($D$11=\"Uso eficiente de residuos aprovechables\",IF(OR('Línea Base y beneficios pro (3)'!$R$15=\"\",P32=\"\"),\"\",P32-'Línea Base y beneficios pro (3)'!$R$15),IF(OR('Línea Base y beneficios pro (3)'!$R$15=\"\",P32=\"\"),\"\",'Línea Base y beneficios pro (3)'!$R$15-P32))),\"\")","v":""},{"$f":"SUM(Tabla4796132831[[#This Row],[Mes 1]:[Mes 12]])","v":0},{"$f":"AVERAGE(Tabla4796132831[[#This Row],[Mes 1]:[Mes 12]])","v":{"$error":"#DIV/0!"}}]
[]
[]
[]
[]
[]
[]
[]
[]
[]
[]
[]
[]
[]
[null,null,null,"Componente Ambiental",null,null,null,null,null,null,null,"Componente Económico"]
[]
[null,null,null,"Componente ambiental, la línea base inicial indicaba un consumo promedio mensual de XXXXX. Tras implementar las medidas propuestas, se alcanzó una reducción real de XXXX mensuales en promedio, representando un % de disminución respecto a la línea base. ",null,null,null,null,null,null,null,"Componente económico, se proyectó un ahorro de $XXX en costos asociados al consumo o generación de XXXX. Al cierre, los beneficios obtenidos alcanzaron los $xxx, esto representa un cumplimiento del xx% respecto a las expectativas económicas del período."]
[]
[]
[]
[]
[]
[]
[null,null,null,"EVIDENCIAS DE IMPLEMENTACIÓN"]
[]
[]
[null,null,null,"Cálculos y resultados obtenidos"]
[]
[]
[]
[]
[]
[]
[]
[]
[]
[]
[]
[]
[]
[]
[null,null,null,"Fotografías y evidencias de implementación",null,null,null,null,null,null,null,null,null,null,null,null,null,null,null,null,null,"OBSERVACIONES TUTOR "]